Workbook

Sheet اساس 2016 مرتب
F2: ; ] [
C3: تاريخ الفتح الفني | D3: تاريخ المستخلص ( من ) | E3: (الى ) | F3: جملة الأيام
D4: 2019-09-12 | E4: 2020-04-11 | F4: =E4-D4 -> 212 | J4: تاريخ المستخلص ( من ) | K4: (الى )
C5: 2019-01-01 | D5: 2019-09-01 | E5: 2020-04-01 | J5: 2019-09-12 | K5: 2020-04-11
C6: ملحوظة للأستاذ / محمد صالح عدد شهور المستخلص الفعلية قمت بكتابتها يدويا لعدم قدرتي على ادراج معادلة لتقسيم الشهور الموجودة في الخانتين c4 , d4 كما قمت بتقريب الخلية c4 الى أول الشهر الخاص بها وكتابتها يدويا في الخلية c5 وكذلك الخلية c4 وكتابتها في c5 | D6: شهور المستخلص الفعلية | E6: نهاية الشهر | F6: أيام الشهر | G6: جملة الأيام | H6: النسبة | J6: 2019-09-01 | K6: 2020-04-01
D7: =D4 -> 2019-09-12 | E7: =EOMONTH(D7,0) -> 2019-09-30 | F7: =E7-D7+1 -> 19 | G7: =$F$4 -> 212 | H7: =F7/G7 -> 0.08962264151 | J7: شهور المستخلص مكتوبة بأول الشهر لاستخراج الأرقام القياسية
D8: =DATE(YEAR(D7),MONTH(D7),DAY(D7)+(F7)) -> 2019-10-01 | E8: =EOMONTH(D8,0) -> 2019-10-31 | F8: =E8-D8+1 -> 31 | G8: =$F$4 -> 212 | H8: =F8/G8 -> 0.1462264151 | J8: 2019-09-01
D9: 2019-11-01 | E9: 2019-11-30 | F9: 30 | G9: 212 | H9: 0.141509434 | J9: 2019-10-01
D10: 2019-12-01 | E10: 2019-12-31 | F10: 31 | G10: 212 | H10: 0.1462264151 | J10: 2019-11-01
D11: 2020-01-01 | E11: 2020-01-31 | F11: 31 | G11: 212 | H11: 0.1462264151 | J11: 2019-12-01
D12: 2020-02-01 | E12: 2020-02-29 | F12: 29 | G12: 212 | H12: 0.1367924528 | J12: 2020-01-01
D13: 2020-03-01 | E13: 2020-03-31 | F13: 31 | G13: 212 | H13: 0.1462264151 | J13: 2020-02-01
D14: 2020-04-01 | E14: 2020-04-11 | F14: 11 | G14: 212 | H14: 0.05188679245 | J14: 2020-03-01
J15: 2020-04-01
M16: ملحوظة للأستاذ / محمد صالح المعادلة الموجود في العمود الحالي =($j$8;'الارقام القياسية 2016'!$A$2:$I$73;2;0) حيث j8 هي المتغير المؤثر لاختيار تاريخ المستخلص والتي ستظهر في حالة الشهر التالي باسم j9 والتالي باسم j10
D18: فترة المستحلص
D19: =DATEDIF(D5,E5,"m")+1 -> 8 | E19: شهور
C22: =AbuHani.NoToTxt(C23,"جنيه","قرش") -> فقط مائة وسبعة وتسعون مليون وستة وخمسون ألف وثمانمائة واثنان وخمسون جنيه وخمسة وخمسون قرش
C23: =SUM(S25:S393) -> 197056852.6
J24: رقم البند | K24: البند | L24: الرقم القياسي تاريخ الفتح الفني | M24: الرقم القياسي في شهر المستخلص | N24: نسبة التأثير | O24: كمية البند | P24: سعر البند | Q24: عدد الأيام للشهر | R24: الأيام الكلية للمستخلص | S24: الإجمالي
J25: 1 | K25: سولار | L25: =VLOOKUP($C$5,'الارقام القياسية 2016'!$A$2:$I$73,2,0) -> 266.2 | M25: =VLOOKUP($J$8,'الارقام القياسية 2016'!$A$2:$I$73,2,0) -> 319.6 | N25: =VLOOKUP($J$25,'نسب التأثير والسعر والكمية'!$A$4:$T$100,4,0) -> 0.1 | O25: =VLOOKUP($J$25,'نسب التأثير والسعر والكمية'!$A$4:$C$100,3,0) -> 120 | P25: =VLOOKUP($J$25,'نسب التأثير والسعر والكمية'!$A$4:$C$100,2,0) -> 5 | Q25: =$F$7 -> 19 | R25: =$F$4 -> 212 | S25: =IFERROR((L25*M25)/L25*N25*O25*P25*Q25/R25,"") -> 1718.603774
K26: اسمنت بورتلاند | L26: =VLOOKUP($C$5,'الارقام القياسية 2016'!$A$2:$I$73,3,0) -> 131.9 | M26: =VLOOKUP($J$8,'الارقام القياسية 2016'!$A$2:$I$73,3,0) -> 137.6 | N26: =VLOOKUP($J$25,'نسب التأثير والسعر والكمية'!$A$4:$T$100,5,0) -> 0 | O26: =VLOOKUP($J$25,'نسب التأثير والسعر والكمية'!$A$4:$C$100,3,0) -> 120 | P26: =VLOOKUP($J$25,'نسب التأثير والسعر والكمية'!$A$4:$C$100,2,0) -> 5 | Q26: =$F$7 -> 19 | R26: =$F$4 -> 212 | S26: 0
K27: حديد | L27: =VLOOKUP($C$5,'الارقام القياسية 2016'!$A$2:$I$73,4,0) -> 263.7 | M27: =VLOOKUP($J$8,'الارقام القياسية 2016'!$A$2:$I$73,4,0) -> 270.2 | N27: =VLOOKUP($J$25,'نسب التأثير والسعر والكمية'!$A$4:$T$100,6,0) -> 0 | O27: =VLOOKUP($J$25,'نسب التأثير والسعر والكمية'!$A$4:$C$100,3,0) -> 120 | P27: =VLOOKUP($J$25,'نسب التأثير والسعر والكمية'!$A$4:$C$100,2,0) -> 5 | Q27: 19 | R27: 212 | S27: 0
K28: اسفلت | L28: =VLOOKUP($C$5,'الارقام القياسية 2016'!$A$2:$I$73,5,0) -> 311 | M28: =VLOOKUP($J$8,'الارقام القياسية 2016'!$A$2:$I$73,5,0) -> 311 | N28: =VLOOKUP($J$25,'نسب التأثير والسعر والكمية'!$A$4:$T$100,7,0) -> 0 | O28: =VLOOKUP($J$25,'نسب التأثير والسعر والكمية'!$A$4:$C$100,3,0) -> 120 | P28: =VLOOKUP($J$25,'نسب التأثير والسعر والكمية'!$A$4:$C$100,2,0) -> 5 | Q28: 19 | R28: 212 | S28: 0
K29: قطاعات معدنية | L29: =VLOOKUP($C$5,'الارقام القياسية 2016'!$A$2:$I$73,6,0) -> 250.6 | M29: =VLOOKUP($J$8,'الارقام القياسية 2016'!$A$2:$I$73,6,0) -> 233.5 | N29: =VLOOKUP($J$25,'نسب التأثير والسعر والكمية'!$A$4:$T$100,8,0) -> 0 | O29: =VLOOKUP($J$25,'نسب التأثير والسعر والكمية'!$A$4:$C$100,3,0) -> 120 | P29: =VLOOKUP($J$25,'نسب التأثير والسعر والكمية'!$A$4:$C$100,2,0) -> 5 | Q29: 19 | R29: 212 | S29: 0
K30: غلاف معدني | L30: =VLOOKUP($C$5,'الارقام القياسية 2016'!$A$2:$I$73,7,0) -> 278.2 | M30: =VLOOKUP($J$8,'الارقام القياسية 2016'!$A$2:$I$73,7,0) -> 238.5 | N30: =VLOOKUP($J$25,'نسب التأثير والسعر والكمية'!$A$4:$T$100,9,0) -> 0 | O30: =VLOOKUP($J$25,'نسب التأثير والسعر والكمية'!$A$4:$C$100,3,0) -> 120 | P30: =VLOOKUP($J$25,'نسب التأثير والسعر والكمية'!$A$4:$C$100,2,0) -> 5 | Q30: 19 | R30: 212 | S30: 0
K31: زوايا وكمرات | L31: =VLOOKUP($C$5,'الارقام القياسية 2016'!$A$2:$I$73,8,0) -> 271.6 | M31: =VLOOKUP($J$8,'الارقام القياسية 2016'!$A$2:$I$73,8,0) -> 276.9 | N31: =VLOOKUP($J$25,'نسب التأثير والسعر والكمية'!$A$4:$T$100,10,0) -> 0 | O31: =VLOOKUP($J$25,'نسب التأثير والسعر والكمية'!$A$4:$C$100,3,0) -> 120 | P31: =VLOOKUP($J$25,'نسب التأثير والسعر والكمية'!$A$4:$C$100,2,0) -> 5 | Q31: 19 | R31: 212 | S31: 0
K32: مواسير صلب | L32: =VLOOKUP($C$5,'الارقام القياسية 2016'!$A$2:$I$73,9,0) -> 0 | M32: =VLOOKUP($J$8,'الارقام القياسية 2016'!$A$2:$I$73,9,0) -> 0 | N32: =VLOOKUP($J$25,'نسب التأثير والسعر والكمية'!$A$4:$T$100,11,0) -> 0 | O32: =VLOOKUP($J$25,'نسب التأثير والسعر والكمية'!$A$4:$C$100,3,0) -> 120 | P32: =VLOOKUP($J$25,'نسب التأثير والسعر والكمية'!$A$4:$C$100,2,0) -> 5 | Q32: 19 | R32: 212
J34: رقم البند | K34: البند | L34: الرقم القياسي تاريخ الفتح الفني | M34: الرقم القياسي في شهر المستخلص | N34: نسبة التأثير | O34: كمية البند | P34: سعر البند | Q34: عدد الأيام للشهر | R34: الأيام الكلية للمستخلص | S34: الإجمالي
J35: 2 | K35: سولار | L35: =VLOOKUP($C$5,'الارقام القياسية 2016'!$A$2:$I$73,2,0) -> 266.2 | M35: =VLOOKUP($J$8,'الارقام القياسية 2016'!$A$2:$I$73,2,0) -> 319.6 | N35: =VLOOKUP($J$35,'نسب التأثير والسعر والكمية'!$A$4:$T$100,4,0) -> 0.2 | O35: =VLOOKUP($J$35,'نسب التأثير والسعر والكمية'!$A$4:$C$100,3,0) -> 15 | P35: =VLOOKUP($J$35,'نسب التأثير والسعر والكمية'!$A$4:$C$100,2,0) -> 12 | Q35: =$F$7 -> 19 | R35: =$F$4 -> 212 | S35: =IFERROR((L35*M35)/L35*N35*O35*P35*Q35/R35,"") -> 1031.162264
K36: اسمنت بورتلاند | L36: =VLOOKUP($C$5,'الارقام القياسية 2016'!$A$2:$I$73,3,0) -> 131.9 | M36: =VLOOKUP($J$8,'الارقام القياسية 2016'!$A$2:$I$73,3,0) -> 137.6 | N36: =VLOOKUP($J$35,'نسب التأثير والسعر والكمية'!$A$4:$T$100,5,0) -> 0 | O36: =VLOOKUP($J$35,'نسب التأثير والسعر والكمية'!$A$4:$C$100,3,0) -> 15 | P36: =VLOOKUP($J$35,'نسب التأثير والسعر والكمية'!$A$4:$C$100,2,0) -> 12 | Q36: =$F$7 -> 19 | R36: =$F$4 -> 212 | S36: 0
K37: حديد | L37: =VLOOKUP($C$5,'الارقام القياسية 2016'!$A$2:$I$73,4,0) -> 263.7 | M37: =VLOOKUP($J$8,'الارقام القياسية 2016'!$A$2:$I$73,4,0) -> 270.2 | N37: =VLOOKUP($J$35,'نسب التأثير والسعر والكمية'!$A$4:$T$100,6,0) -> 0 | O37: =VLOOKUP($J$35,'نسب التأثير والسعر والكمية'!$A$4:$C$100,3,0) -> 15 | P37: =VLOOKUP($J$35,'نسب التأثير والسعر والكمية'!$A$4:$C$100,2,0) -> 12 | Q37: 19 | R37: 212 | S37: 0
K38: اسفلت | L38: =VLOOKUP($C$5,'الارقام القياسية 2016'!$A$2:$I$73,5,0) -> 311 | M38: =VLOOKUP($J$8,'الارقام القياسية 2016'!$A$2:$I$73,5,0) -> 311 | N38: =VLOOKUP($J$35,'نسب التأثير والسعر والكمية'!$A$4:$T$100,7,0) -> 0 | O38: =VLOOKUP($J$35,'نسب التأثير والسعر والكمية'!$A$4:$C$100,3,0) -> 15 | P38: =VLOOKUP($J$35,'نسب التأثير والسعر والكمية'!$A$4:$C$100,2,0) -> 12 | Q38: 19 | R38: 212 | S38: 0
K39: قطاعات معدنية | L39: =VLOOKUP($C$5,'الارقام القياسية 2016'!$A$2:$I$73,6,0) -> 250.6 | M39: =VLOOKUP($J$8,'الارقام القياسية 2016'!$A$2:$I$73,6,0) -> 233.5 | N39: =VLOOKUP($J$35,'نسب التأثير والسعر والكمية'!$A$4:$T$100,8,0) -> 0 | O39: =VLOOKUP($J$35,'نسب التأثير والسعر والكمية'!$A$4:$C$100,3,0) -> 15 | P39: =VLOOKUP($J$35,'نسب التأثير والسعر والكمية'!$A$4:$C$100,2,0) -> 12 | Q39: 19 | R39: 212 | S39: 0
K40: غلاف معدني | L40: =VLOOKUP($C$5,'الارقام القياسية 2016'!$A$2:$I$73,7,0) -> 278.2 | M40: =VLOOKUP($J$8,'الارقام القياسية 2016'!$A$2:$I$73,7,0) -> 238.5 | N40: =VLOOKUP($J$35,'نسب التأثير والسعر والكمية'!$A$4:$T$100,9,0) -> 0 | O40: =VLOOKUP($J$35,'نسب التأثير والسعر والكمية'!$A$4:$C$100,3,0) -> 15 | P40: =VLOOKUP($J$35,'نسب التأثير والسعر والكمية'!$A$4:$C$100,2,0) -> 12 | Q40: 19 | R40: 212 | S40: 0
K41: زوايا وكمرات | L41: =VLOOKUP($C$5,'الارقام القياسية 2016'!$A$2:$I$73,8,0) -> 271.6 | M41: =VLOOKUP($J$8,'الارقام القياسية 2016'!$A$2:$I$73,8,0) -> 276.9 | N41: =VLOOKUP($J$35,'نسب التأثير والسعر والكمية'!$A$4:$T$100,10,0) -> 0 | O41: =VLOOKUP($J$35,'نسب التأثير والسعر والكمية'!$A$4:$C$100,3,0) -> 15 | P41: =VLOOKUP($J$35,'نسب التأثير والسعر والكمية'!$A$4:$C$100,2,0) -> 12 | Q41: 19 | R41: 212 | S41: 0
K42: مواسير صلب | L42: =VLOOKUP($C$5,'الارقام القياسية 2016'!$A$2:$I$73,9,0) -> 0 | M42: =VLOOKUP($J$8,'الارقام القياسية 2016'!$A$2:$I$73,9,0) -> 0 | N42: =VLOOKUP($J$35,'نسب التأثير والسعر والكمية'!$A$4:$T$100,11,0) -> 0 | O42: =VLOOKUP($J$35,'نسب التأثير والسعر والكمية'!$A$4:$C$100,3,0) -> 15 | P42: =VLOOKUP($J$35,'نسب التأثير والسعر والكمية'!$A$4:$C$100,2,0) -> 12 | Q42: 19 | R42: 212
J44: رقم البند | K44: البند | L44: الرقم القياسي تاريخ الفتح الفني | M44: الرقم القياسي في شهر المستخلص | N44: نسبة التأثير | O44: كمية البند | P44: سعر البند | Q44: عدد الأيام للشهر | R44: الأيام الكلية للمستخلص | S44: الإجمالي
J45: 3 | K45: سولار | L45: =VLOOKUP($C$5,'الارقام القياسية 2016'!$A$2:$I$73,2,0) -> 266.2 | M45: =VLOOKUP($J$8,'الارقام القياسية 2016'!$A$2:$I$73,2,0) -> 319.6 | N45: =VLOOKUP($J$45,'نسب التأثير والسعر والكمية'!$A$4:$T$100,4,0) -> 0.3 | O45: =VLOOKUP($J$45,'نسب التأثير والسعر والكمية'!$A$4:$C$100,3,0) -> 156 | P45: =VLOOKUP($J$45,'نسب التأثير والسعر والكمية'!$A$4:$C$100,2,0) -> 7 | Q45: =$F$7 -> 19 | R45: =$F$4 -> 212 | S45: =IFERROR((L45*M45)/L45*N45*O45*P45*Q45/R45,"") -> 9383.576604
K46: اسمنت بورتلاند | L46: =VLOOKUP($C$5,'الارقام القياسية 2016'!$A$2:$I$73,3,0) -> 131.9 | M46: =VLOOKUP($J$8,'الارقام القياسية 2016'!$A$2:$I$73,3,0) -> 137.6 | N46: =VLOOKUP($J$45,'نسب التأثير والسعر والكمية'!$A$4:$T$100,5,0) -> 0 | O46: =VLOOKUP($J$45,'نسب التأثير والسعر والكمية'!$A$4:$C$100,3,0) -> 156 | P46: =VLOOKUP($J$45,'نسب التأثير والسعر والكمية'!$A$4:$C$100,2,0) -> 7 | Q46: =$F$7 -> 19 | R46: =$F$4 -> 212 | S46: 0
K47: حديد | L47: =VLOOKUP($C$5,'الارقام القياسية 2016'!$A$2:$I$73,4,0) -> 263.7 | M47: =VLOOKUP($J$8,'الارقام القياسية 2016'!$A$2:$I$73,4,0) -> 270.2 | N47: =VLOOKUP($J$45,'نسب التأثير والسعر والكمية'!$A$4:$T$100,6,0) -> 0 | O47: =VLOOKUP($J$45,'نسب التأثير والسعر والكمية'!$A$4:$C$100,3,0) -> 156 | P47: =VLOOKUP($J$45,'نسب التأثير والسعر والكمية'!$A$4:$C$100,2,0) -> 7 | Q47: 19 | R47: 212 | S47: 0
K48: اسفلت | L48: =VLOOKUP($C$5,'الارقام القياسية 2016'!$A$2:$I$73,5,0) -> 311 | M48: =VLOOKUP($J$8,'الارقام القياسية 2016'!$A$2:$I$73,5,0) -> 311 | N48: =VLOOKUP($J$45,'نسب التأثير والسعر والكمية'!$A$4:$T$100,7,0) -> 0 | O48: =VLOOKUP($J$45,'نسب التأثير والسعر والكمية'!$A$4:$C$100,3,0) -> 156 | P48: =VLOOKUP($J$45,'نسب التأثير والسعر والكمية'!$A$4:$C$100,2,0) -> 7 | Q48: 19 | R48: 212 | S48: 0
K49: قطاعات معدنية | L49: =VLOOKUP($C$5,'الارقام القياسية 2016'!$A$2:$I$73,6,0) -> 250.6 | M49: =VLOOKUP($J$8,'الارقام القياسية 2016'!$A$2:$I$73,6,0) -> 233.5 | N49: =VLOOKUP($J$45,'نسب التأثير والسعر والكمية'!$A$4:$T$100,8,0) -> 0 | O49: =VLOOKUP($J$45,'نسب التأثير والسعر والكمية'!$A$4:$C$100,3,0) -> 156 | P49: =VLOOKUP($J$45,'نسب التأثير والسعر والكمية'!$A$4:$C$100,2,0) -> 7 | Q49: 19 | R49: 212 | S49: 0
K50: غلاف معدني | L50: =VLOOKUP($C$5,'الارقام القياسية 2016'!$A$2:$I$73,7,0) -> 278.2 | M50: =VLOOKUP($J$8,'الارقام القياسية 2016'!$A$2:$I$73,7,0) -> 238.5 | N50: =VLOOKUP($J$45,'نسب التأثير والسعر والكمية'!$A$4:$T$100,9,0) -> 0 | O50: =VLOOKUP($J$45,'نسب التأثير والسعر والكمية'!$A$4:$C$100,3,0) -> 156 | P50: =VLOOKUP($J$45,'نسب التأثير والسعر والكمية'!$A$4:$C$100,2,0) -> 7 | Q50: 19 | R50: 212 | S50: 0
K51: زوايا وكمرات | L51: =VLOOKUP($C$5,'الارقام القياسية 2016'!$A$2:$I$73,8,0) -> 271.6 | M51: =VLOOKUP($J$8,'الارقام القياسية 2016'!$A$2:$I$73,8,0) -> 276.9 | N51: =VLOOKUP($J$45,'نسب التأثير والسعر والكمية'!$A$4:$T$100,10,0) -> 0 | O51: =VLOOKUP($J$45,'نسب التأثير والسعر والكمية'!$A$4:$C$100,3,0) -> 156 | P51: =VLOOKUP($J$45,'نسب التأثير والسعر والكمية'!$A$4:$C$100,2,0) -> 7 | Q51: 19 | R51: 212 | S51: 0
K52: مواسير صلب | L52: =VLOOKUP($C$5,'الارقام القياسية 2016'!$A$2:$I$73,9,0) -> 0 | M52: =VLOOKUP($J$8,'الارقام القياسية 2016'!$A$2:$I$73,9,0) -> 0 | N52: =VLOOKUP($J$45,'نسب التأثير والسعر والكمية'!$A$4:$T$100,11,0) -> 0 | O52: =VLOOKUP($J$45,'نسب التأثير والسعر والكمية'!$A$4:$C$100,3,0) -> 156 | P52: =VLOOKUP($J$45,'نسب التأثير والسعر والكمية'!$A$4:$C$100,2,0) -> 7 | Q52: 19 | R52: 212
J54: رقم البند | K54: البند | L54: الرقم القياسي تاريخ الفتح الفني | M54: الرقم القياسي في شهر المستخلص | N54: نسبة التأثير | O54: كمية البند | P54: سعر البند | Q54: عدد الأيام للشهر | R54: الأيام الكلية للمستخلص | S54: الإجمالي
J55: 4 | K55: سولار | L55: =VLOOKUP($C$5,'الارقام القياسية 2016'!$A$2:$I$73,2,0) -> 266.2 | M55: =VLOOKUP($J$8,'الارقام القياسية 2016'!$A$2:$I$73,2,0) -> 319.6 | N55: =VLOOKUP($J$55,'نسب التأثير والسعر والكمية'!$A$4:$T$100,4,0) -> 0.4 | O55: =VLOOKUP($J$55,'نسب التأثير والسعر والكمية'!$A$4:$C$100,3,0) -> 125 | P55: =VLOOKUP($J$55,'نسب التأثير والسعر والكمية'!$A$4:$C$100,2,0) -> 3 | Q55: =$F$7 -> 19 | R55: =$F$4 -> 212 | S55: =IFERROR((L55*M55)/L55*N55*O55*P55*Q55/R55,"") -> 4296.509434
K56: اسمنت بورتلاند | L56: =VLOOKUP($C$5,'الارقام القياسية 2016'!$A$2:$I$73,3,0) -> 131.9 | M56: =VLOOKUP($J$8,'الارقام القياسية 2016'!$A$2:$I$73,3,0) -> 137.6 | N56: =VLOOKUP($J$55,'نسب التأثير والسعر والكمية'!$A$4:$T$100,5,0) -> 0 | O56: =VLOOKUP($J$55,'نسب التأثير والسعر والكمية'!$A$4:$C$100,3,0) -> 125 | P56: =VLOOKUP($J$55,'نسب التأثير والسعر والكمية'!$A$4:$C$100,2,0) -> 3 | Q56: =$F$7 -> 19 | R56: =$F$4 -> 212 | S56: 0
K57: حديد | L57: =VLOOKUP($C$5,'الارقام القياسية 2016'!$A$2:$I$73,4,0) -> 263.7 | M57: =VLOOKUP($J$8,'الارقام القياسية 2016'!$A$2:$I$73,4,0) -> 270.2 | N57: =VLOOKUP($J$55,'نسب التأثير والسعر والكمية'!$A$4:$T$100,6,0) -> 0 | O57: =VLOOKUP($J$55,'نسب التأثير والسعر والكمية'!$A$4:$C$100,3,0) -> 125 | P57: =VLOOKUP($J$55,'نسب التأثير والسعر والكمية'!$A$4:$C$100,2,0) -> 3 | Q57: 19 | R57: 212 | S57: 0
K58: اسفلت | L58: =VLOOKUP($C$5,'الارقام القياسية 2016'!$A$2:$I$73,5,0) -> 311 | M58: =VLOOKUP($J$8,'الارقام القياسية 2016'!$A$2:$I$73,5,0) -> 311 | N58: =VLOOKUP($J$55,'نسب التأثير والسعر والكمية'!$A$4:$T$100,7,0) -> 0 | O58: =VLOOKUP($J$55,'نسب التأثير والسعر والكمية'!$A$4:$C$100,3,0) -> 125 | P58: =VLOOKUP($J$55,'نسب التأثير والسعر والكمية'!$A$4:$C$100,2,0) -> 3 | Q58: 19 | R58: 212 | S58: 0
K59: قطاعات معدنية | L59: =VLOOKUP($C$5,'الارقام القياسية 2016'!$A$2:$I$73,6,0) -> 250.6 | M59: =VLOOKUP($J$8,'الارقام القياسية 2016'!$A$2:$I$73,6,0) -> 233.5 | N59: =VLOOKUP($J$55,'نسب التأثير والسعر والكمية'!$A$4:$T$100,8,0) -> 0 | O59: =VLOOKUP($J$55,'نسب التأثير والسعر والكمية'!$A$4:$C$100,3,0) -> 125 | P59: =VLOOKUP($J$55,'نسب التأثير والسعر والكمية'!$A$4:$C$100,2,0) -> 3 | Q59: 19 | R59: 212 | S59: 0
K60: غلاف معدني | L60: =VLOOKUP($C$5,'الارقام القياسية 2016'!$A$2:$I$73,7,0) -> 278.2 | M60: =VLOOKUP($J$8,'الارقام القياسية 2016'!$A$2:$I$73,7,0) -> 238.5 | N60: =VLOOKUP($J$55,'نسب التأثير والسعر والكمية'!$A$4:$T$100,9,0) -> 0 | O60: =VLOOKUP($J$55,'نسب التأثير والسعر والكمية'!$A$4:$C$100,3,0) -> 125 | P60: =VLOOKUP($J$55,'نسب التأثير والسعر والكمية'!$A$4:$C$100,2,0) -> 3 | Q60: 19 | R60: 212 | S60: 0
K61: زوايا وكمرات | L61: =VLOOKUP($C$5,'الارقام القياسية 2016'!$A$2:$I$73,8,0) -> 271.6 | M61: =VLOOKUP($J$8,'الارقام القياسية 2016'!$A$2:$I$73,8,0) -> 276.9 | N61: =VLOOKUP($J$55,'نسب التأثير والسعر والكمية'!$A$4:$T$100,10,0) -> 0 | O61: =VLOOKUP($J$55,'نسب التأثير والسعر والكمية'!$A$4:$C$100,3,0) -> 125 | P61: =VLOOKUP($J$55,'نسب التأثير والسعر والكمية'!$A$4:$C$100,2,0) -> 3 | Q61: 19 | R61: 212 | S61: 0
K62: مواسير صلب | L62: =VLOOKUP($C$5,'الارقام القياسية 2016'!$A$2:$I$73,9,0) -> 0 | M62: =VLOOKUP($J$8,'الارقام القياسية 2016'!$A$2:$I$73,9,0) -> 0 | N62: =VLOOKUP($J$35,'نسب التأثير والسعر والكمية'!$A$4:$T$100,11,0) -> 0 | O62: =VLOOKUP($J$55,'نسب التأثير والسعر والكمية'!$A$4:$C$100,3,0) -> 125 | P62: =VLOOKUP($J$55,'نسب التأثير والسعر والكمية'!$A$4:$C$100,2,0) -> 3 | Q62: 19 | R62: 212
J64: رقم البند | K64: البند | L64: الرقم القياسي تاريخ الفتح الفني | M64: الرقم القياسي في شهر المستخلص | N64: نسبة التأثير | O64: كمية البند | P64: سعر البند | Q64: عدد الأيام للشهر | R64: الأيام الكلية للمستخلص | S64: الإجمالي
J65: 5 | K65: سولار | L65: =VLOOKUP($C$5,'الارقام القياسية 2016'!$A$2:$I$73,2,0) -> 266.2 | M65: =VLOOKUP($J$8,'الارقام القياسية 2016'!$A$2:$I$73,2,0) -> 319.6 | N65: =VLOOKUP($J$65,'نسب التأثير والسعر والكمية'!$A$4:$T$100,4,0) -> 0.5 | O65: =VLOOKUP($J$65,'نسب التأثير والسعر والكمية'!$A$4:$C$100,3,0) -> 15 | P65: =VLOOKUP($J$65,'نسب التأثير والسعر والكمية'!$A$4:$C$100,2,0) -> 45 | Q65: =$F$7 -> 19 | R65: =$F$4 -> 212 | S65: =IFERROR((L65*M65)/L65*N65*O65*P65*Q65/R65,"") -> 9667.146226
K66: اسمنت بورتلاند | L66: =VLOOKUP($C$5,'الارقام القياسية 2016'!$A$2:$I$73,3,0) -> 131.9 | M66: =VLOOKUP($J$8,'الارقام القياسية 2016'!$A$2:$I$73,3,0) -> 137.6 | N66: =VLOOKUP($J$65,'نسب التأثير والسعر والكمية'!$A$4:$T$100,5,0) -> 0 | O66: =VLOOKUP($J$65,'نسب التأثير والسعر والكمية'!$A$4:$C$100,3,0) -> 15 | P66: =VLOOKUP($J$65,'نسب التأثير والسعر والكمية'!$A$4:$C$100,2,0) -> 45 | Q66: =$F$7 -> 19 | R66: =$F$4 -> 212 | S66: 0
K67: حديد | L67: =VLOOKUP($C$5,'الارقام القياسية 2016'!$A$2:$I$73,4,0) -> 263.7 | M67: =VLOOKUP($J$8,'الارقام القياسية 2016'!$A$2:$I$73,4,0) -> 270.2 | N67: =VLOOKUP($J$65,'نسب التأثير والسعر والكمية'!$A$4:$T$100,6,0) -> 0 | O67: =VLOOKUP($J$65,'نسب التأثير والسعر والكمية'!$A$4:$C$100,3,0) -> 15 | P67: =VLOOKUP($J$65,'نسب التأثير والسعر والكمية'!$A$4:$C$100,2,0) -> 45 | Q67: 19 | R67: 212 | S67: 0
K68: اسفلت | L68: =VLOOKUP($C$5,'الارقام القياسية 2016'!$A$2:$I$73,5,0) -> 311 | M68: =VLOOKUP($J$8,'الارقام القياسية 2016'!$A$2:$I$73,5,0) -> 311 | N68: =VLOOKUP($J$65,'نسب التأثير والسعر والكمية'!$A$4:$T$100,7,0) -> 0 | O68: =VLOOKUP($J$65,'نسب التأثير والسعر والكمية'!$A$4:$C$100,3,0) -> 15 | P68: =VLOOKUP($J$65,'نسب التأثير والسعر والكمية'!$A$4:$C$100,2,0) -> 45 | Q68: 19 | R68: 212 | S68: 0
K69: قطاعات معدنية | L69: =VLOOKUP($C$5,'الارقام القياسية 2016'!$A$2:$I$73,6,0) -> 250.6 | M69: =VLOOKUP($J$8,'الارقام القياسية 2016'!$A$2:$I$73,6,0) -> 233.5 | N69: =VLOOKUP($J$65,'نسب التأثير والسعر والكمية'!$A$4:$T$100,8,0) -> 0 | O69: =VLOOKUP($J$65,'نسب التأثير والسعر والكمية'!$A$4:$C$100,3,0) -> 15 | P69: =VLOOKUP($J$65,'نسب التأثير والسعر والكمية'!$A$4:$C$100,2,0) -> 45 | Q69: 19 | R69: 212 | S69: 0
K70: غلاف معدني | L70: =VLOOKUP($C$5,'الارقام القياسية 2016'!$A$2:$I$73,7,0) -> 278.2 | M70: =VLOOKUP($J$8,'الارقام القياسية 2016'!$A$2:$I$73,7,0) -> 238.5 | N70: =VLOOKUP($J$65,'نسب التأثير والسعر والكمية'!$A$4:$T$100,9,0) -> 0 | O70: =VLOOKUP($J$65,'نسب التأثير والسعر والكمية'!$A$4:$C$100,3,0) -> 15 | P70: =VLOOKUP($J$65,'نسب التأثير والسعر والكمية'!$A$4:$C$100,2,0) -> 45 | Q70: 19 | R70: 212 | S70: 0
K71: زوايا وكمرات | L71: =VLOOKUP($C$5,'الارقام القياسية 2016'!$A$2:$I$73,8,0) -> 271.6 | M71: =VLOOKUP($J$8,'الارقام القياسية 2016'!$A$2:$I$73,8,0) -> 276.9 | N71: =VLOOKUP($J$65,'نسب التأثير والسعر والكمية'!$A$4:$T$100,10,0) -> 0 | O71: =VLOOKUP($J$65,'نسب التأثير والسعر والكمية'!$A$4:$C$100,3,0) -> 15 | P71: =VLOOKUP($J$65,'نسب التأثير والسعر والكمية'!$A$4:$C$100,2,0) -> 45 | Q71: 19 | R71: 212 | S71: 0
K72: مواسير صلب | L72: =VLOOKUP($C$5,'الارقام القياسية 2016'!$A$2:$I$73,9,0) -> 0 | M72: =VLOOKUP($J$8,'الارقام القياسية 2016'!$A$2:$I$73,9,0) -> 0 | N72: =VLOOKUP($J$65,'نسب التأثير والسعر والكمية'!$A$4:$T$100,11,0) -> 0 | O72: =VLOOKUP($J$65,'نسب التأثير والسعر والكمية'!$A$4:$C$100,3,0) -> 15 | P72: =VLOOKUP($J$65,'نسب التأثير والسعر والكمية'!$A$4:$C$100,2,0) -> 45 | Q72: 19 | R72: 212
J74: رقم البند | K74: البند | L74: الرقم القياسي تاريخ الفتح الفني | M74: الرقم القياسي في شهر المستخلص | N74: نسبة التأثير | O74: كمية البند | P74: سعر البند | Q74: عدد الأيام للشهر | R74: الأيام الكلية للمستخلص | S74: الإجمالي
J75: 6 | K75: سولار | L75: =VLOOKUP($C$5,'الارقام القياسية 2016'!$A$2:$I$73,2,0) -> 266.2 | M75: =VLOOKUP($J$8,'الارقام القياسية 2016'!$A$2:$I$73,2,0) -> 319.6 | N75: =VLOOKUP($J$75,'نسب التأثير والسعر والكمية'!$A$4:$T$100,4,0) -> 0.6 | O75: =VLOOKUP($J$75,'نسب التأثير والسعر والكمية'!$A$4:$C$100,3,0) -> 51 | P75: =VLOOKUP($J$75,'نسب التأثير والسعر والكمية'!$A$4:$C$100,2,0) -> 645 | Q75: =$F$7 -> 19 | R75: =$F$4 -> 212 | S75: =IFERROR((L75*M75)/L75*N75*O75*P75*Q75/R75,"") -> 565334.7113
K76: اسمنت بورتلاند | L76: =VLOOKUP($C$5,'الارقام القياسية 2016'!$A$2:$I$73,3,0) -> 131.9 | M76: =VLOOKUP($J$8,'الارقام القياسية 2016'!$A$2:$I$73,3,0) -> 137.6 | N76: =VLOOKUP($J$75,'نسب التأثير والسعر والكمية'!$A$4:$T$100,5,0) -> 0 | O76: =VLOOKUP($J$75,'نسب التأثير والسعر والكمية'!$A$4:$C$100,3,0) -> 51 | P76: =VLOOKUP($J$75,'نسب التأثير والسعر والكمية'!$A$4:$C$100,2,0) -> 645 | Q76: =$F$7 -> 19 | R76: =$F$4 -> 212 | S76: 0
K77: حديد | L77: =VLOOKUP($C$5,'الارقام القياسية 2016'!$A$2:$I$73,4,0) -> 263.7 | M77: =VLOOKUP($J$8,'الارقام القياسية 2016'!$A$2:$I$73,4,0) -> 270.2 | N77: =VLOOKUP($J$75,'نسب التأثير والسعر والكمية'!$A$4:$T$100,6,0) -> 0 | O77: =VLOOKUP($J$75,'نسب التأثير والسعر والكمية'!$A$4:$C$100,3,0) -> 51 | P77: =VLOOKUP($J$75,'نسب التأثير والسعر والكمية'!$A$4:$C$100,2,0) -> 645 | Q77: 19 | R77: 212 | S77: 0
K78: اسفلت | L78: =VLOOKUP($C$5,'الارقام القياسية 2016'!$A$2:$I$73,5,0) -> 311 | M78: =VLOOKUP($J$8,'الارقام القياسية 2016'!$A$2:$I$73,5,0) -> 311 | N78: =VLOOKUP($J$75,'نسب التأثير والسعر والكمية'!$A$4:$T$100,7,0) -> 0 | O78: =VLOOKUP($J$75,'نسب التأثير والسعر والكمية'!$A$4:$C$100,3,0) -> 51 | P78: =VLOOKUP($J$75,'نسب التأثير والسعر والكمية'!$A$4:$C$100,2,0) -> 645 | Q78: 19 | R78: 212 | S78: 0
K79: قطاعات معدنية | L79: =VLOOKUP($C$5,'الارقام القياسية 2016'!$A$2:$I$73,6,0) -> 250.6 | M79: =VLOOKUP($J$8,'الارقام القياسية 2016'!$A$2:$I$73,6,0) -> 233.5 | N79: =VLOOKUP($J$75,'نسب التأثير والسعر والكمية'!$A$4:$T$100,8,0) -> 0 | O79: =VLOOKUP($J$75,'نسب التأثير والسعر والكمية'!$A$4:$C$100,3,0) -> 51 | P79: =VLOOKUP($J$75,'نسب التأثير والسعر والكمية'!$A$4:$C$100,2,0) -> 645 | Q79: 19 | R79: 212 | S79: 0
K80: غلاف معدني | L80: =VLOOKUP($C$5,'الارقام القياسية 2016'!$A$2:$I$73,7,0) -> 278.2 | M80: =VLOOKUP($J$8,'الارقام القياسية 2016'!$A$2:$I$73,7,0) -> 238.5 | N80: =VLOOKUP($J$75,'نسب التأثير والسعر والكمية'!$A$4:$T$100,9,0) -> 0 | O80: =VLOOKUP($J$75,'نسب التأثير والسعر والكمية'!$A$4:$C$100,3,0) -> 51 | P80: =VLOOKUP($J$75,'نسب التأثير والسعر والكمية'!$A$4:$C$100,2,0) -> 645 | Q80: 19 | R80: 212 | S80: 0
K81: زوايا وكمرات | L81: =VLOOKUP($C$5,'الارقام القياسية 2016'!$A$2:$I$73,8,0) -> 271.6 | M81: =VLOOKUP($J$8,'الارقام القياسية 2016'!$A$2:$I$73,8,0) -> 276.9 | N81: =VLOOKUP($J$75,'نسب التأثير والسعر والكمية'!$A$4:$T$100,10,0) -> 0 | O81: =VLOOKUP($J$75,'نسب التأثير والسعر والكمية'!$A$4:$C$100,3,0) -> 51 | P81: =VLOOKUP($J$75,'نسب التأثير والسعر والكمية'!$A$4:$C$100,2,0) -> 645 | Q81: 19 | R81: 212 | S81: 0
K82: مواسير صلب | L82: =VLOOKUP($C$5,'الارقام القياسية 2016'!$A$2:$I$73,9,0) -> 0 | M82: =VLOOKUP($J$8,'الارقام القياسية 2016'!$A$2:$I$73,9,0) -> 0 | N82: =VLOOKUP($J$75,'نسب التأثير والسعر والكمية'!$A$4:$T$100,11,0) -> 0 | O82: =VLOOKUP($J$75,'نسب التأثير والسعر والكمية'!$A$4:$C$100,3,0) -> 51 | P82: =VLOOKUP($J$75,'نسب التأثير والسعر والكمية'!$A$4:$C$100,2,0) -> 645 | Q82: 19 | R82: 212
J84: رقم البند | K84: البند | L84: الرقم القياسي تاريخ الفتح الفني | M84: الرقم القياسي في شهر المستخلص | N84: نسبة التأثير | O84: كمية البند | P84: سعر البند | Q84: عدد الأيام للشهر | R84: الأيام الكلية للمستخلص | S84: الإجمالي
J85: 7 | K85: سولار | L85: =VLOOKUP($C$5,'الارقام القياسية 2016'!$A$2:$I$73,2,0) -> 266.2 | M85: =VLOOKUP($J$8,'الارقام القياسية 2016'!$A$2:$I$73,2,0) -> 319.6 | N85: =VLOOKUP($J$85,'نسب التأثير والسعر والكمية'!$A$4:$T$100,4,0) -> 0.7 | O85: =VLOOKUP($J$85,'نسب التأثير والسعر والكمية'!$A$4:$C$100,3,0) -> 4545 | P85: =VLOOKUP($J$85,'نسب التأثير والسعر والكمية'!$A$4:$C$100,2,0) -> 884 | Q85: =$F$7 -> 19 | R85: =$F$4 -> 212 | S85: =IFERROR((L85*M85)/L85*N85*O85*P85*Q85/R85,"") -> 80558005.14
K86: اسمنت بورتلاند | L86: =VLOOKUP($C$5,'الارقام القياسية 2016'!$A$2:$I$73,3,0) -> 131.9 | M86: =VLOOKUP($J$8,'الارقام القياسية 2016'!$A$2:$I$73,3,0) -> 137.6 | N86: =VLOOKUP($J$85,'نسب التأثير والسعر والكمية'!$A$4:$T$100,5,0) -> 0 | O86: =VLOOKUP($J$85,'نسب التأثير والسعر والكمية'!$A$4:$C$100,3,0) -> 4545 | P86: =VLOOKUP($J$85,'نسب التأثير والسعر والكمية'!$A$4:$C$100,2,0) -> 884 | Q86: =$F$7 -> 19 | R86: =$F$4 -> 212 | S86: 0
K87: حديد | L87: =VLOOKUP($C$5,'الارقام القياسية 2016'!$A$2:$I$73,4,0) -> 263.7 | M87: =VLOOKUP($J$8,'الارقام القياسية 2016'!$A$2:$I$73,4,0) -> 270.2 | N87: =VLOOKUP($J$85,'نسب التأثير والسعر والكمية'!$A$4:$T$100,6,0) -> 0 | O87: =VLOOKUP($J$85,'نسب التأثير والسعر والكمية'!$A$4:$C$100,3,0) -> 4545 | P87: =VLOOKUP($J$85,'نسب التأثير والسعر والكمية'!$A$4:$C$100,2,0) -> 884 | Q87: 19 | R87: 212 | S87: 0
K88: اسفلت | L88: =VLOOKUP($C$5,'الارقام القياسية 2016'!$A$2:$I$73,5,0) -> 311 | M88: =VLOOKUP($J$8,'الارقام القياسية 2016'!$A$2:$I$73,5,0) -> 311 | N88: =VLOOKUP($J$85,'نسب التأثير والسعر والكمية'!$A$4:$T$100,7,0) -> 0.75 | O88: =VLOOKUP($J$85,'نسب التأثير والسعر والكمية'!$A$4:$C$100,3,0) -> 4545 | P88: =VLOOKUP($J$85,'نسب التأثير والسعر والكمية'!$A$4:$C$100,2,0) -> 884 | Q88: 19 | R88: 212 | S88: 83989606.2
K89: قطاعات معدنية | L89: =VLOOKUP($C$5,'الارقام القياسية 2016'!$A$2:$I$73,6,0) -> 250.6 | M89: =VLOOKUP($J$8,'الارقام القياسية 2016'!$A$2:$I$73,6,0) -> 233.5 | N89: =VLOOKUP($J$85,'نسب التأثير والسعر والكمية'!$A$4:$T$100,8,0) -> 0 | O89: =VLOOKUP($J$85,'نسب التأثير والسعر والكمية'!$A$4:$C$100,3,0) -> 4545 | P89: =VLOOKUP($J$85,'نسب التأثير والسعر والكمية'!$A$4:$C$100,2,0) -> 884 | Q89: 19 | R89: 212 | S89: 0
K90: غلاف معدني | L90: =VLOOKUP($C$5,'الارقام القياسية 2016'!$A$2:$I$73,7,0) -> 278.2 | M90: =VLOOKUP($J$8,'الارقام القياسية 2016'!$A$2:$I$73,7,0) -> 238.5 | N90: =VLOOKUP($J$85,'نسب التأثير والسعر والكمية'!$A$4:$T$100,9,0) -> 0 | O90: =VLOOKUP($J$85,'نسب التأثير والسعر والكمية'!$A$4:$C$100,3,0) -> 4545 | P90: =VLOOKUP($J$85,'نسب التأثير والسعر والكمية'!$A$4:$C$100,2,0) -> 884 | Q90: 19 | R90: 212 | S90: 0
K91: زوايا وكمرات | L91: =VLOOKUP($C$5,'الارقام القياسية 2016'!$A$2:$I$73,8,0) -> 271.6 | M91: =VLOOKUP($J$8,'الارقام القياسية 2016'!$A$2:$I$73,8,0) -> 276.9 | N91: =VLOOKUP($J$85,'نسب التأثير والسعر والكمية'!$A$4:$T$100,10,0) -> 0 | O91: =VLOOKUP($J$85,'نسب التأثير والسعر والكمية'!$A$4:$C$100,3,0) -> 4545 | P91: =VLOOKUP($J$85,'نسب التأثير والسعر والكمية'!$A$4:$C$100,2,0) -> 884 | Q91: 19 | R91: 212 | S91: 0
K92: مواسير صلب | L92: =VLOOKUP($C$5,'الارقام القياسية 2016'!$A$2:$I$73,9,0) -> 0 | M92: =VLOOKUP($J$8,'الارقام القياسية 2016'!$A$2:$I$73,9,0) -> 0 | N92: =VLOOKUP($J$85,'نسب التأثير والسعر والكمية'!$A$4:$T$100,11,0) -> 0 | O92: =VLOOKUP($J$85,'نسب التأثير والسعر والكمية'!$A$4:$C$100,3,0) -> 4545 | P92: =VLOOKUP($J$85,'نسب التأثير والسعر والكمية'!$A$4:$C$100,2,0) -> 884 | Q92: 19 | R92: 212
J94: رقم البند | K94: البند | L94: الرقم القياسي تاريخ الفتح الفني | M94: الرقم القياسي في شهر المستخلص | N94: نسبة التأثير | O94: كمية البند | P94: سعر البند | Q94: عدد الأيام للشهر | R94: الأيام الكلية للمستخلص | S94: الإجمالي
J95: 8 | K95: سولار | L95: =VLOOKUP($C$5,'الارقام القياسية 2016'!$A$2:$I$73,2,0) -> 266.2 | M95: =VLOOKUP($J$8,'الارقام القياسية 2016'!$A$2:$I$73,2,0) -> 319.6 | N95: =VLOOKUP($J$95,'نسب التأثير والسعر والكمية'!$A$4:$T$100,4,0) -> 0.15 | O95: =VLOOKUP($J$95,'نسب التأثير والسعر والكمية'!$A$4:$C$100,3,0) -> 1545 | P95: =VLOOKUP($J$95,'نسب التأثير والسعر والكمية'!$A$4:$C$100,2,0) -> 54 | Q95: =$F$7 -> 19 | R95: =$F$4 -> 212 | S95: =IFERROR((L95*M95)/L95*N95*O95*P95*Q95/R95,"") -> 358457.7821
K96: اسمنت بورتلاند | L96: =VLOOKUP($C$5,'الارقام القياسية 2016'!$A$2:$I$73,3,0) -> 131.9 | M96: =VLOOKUP($J$8,'الارقام القياسية 2016'!$A$2:$I$73,3,0) -> 137.6 | N96: =VLOOKUP($J$95,'نسب التأثير والسعر والكمية'!$A$4:$T$100,5,0) -> 0 | O96: =VLOOKUP($J$95,'نسب التأثير والسعر والكمية'!$A$4:$C$100,3,0) -> 1545 | P96: =VLOOKUP($J$95,'نسب التأثير والسعر والكمية'!$A$4:$C$100,2,0) -> 54 | Q96: =$F$7 -> 19 | R96: =$F$4 -> 212 | S96: 0
K97: حديد | L97: =VLOOKUP($C$5,'الارقام القياسية 2016'!$A$2:$I$73,4,0) -> 263.7 | M97: =VLOOKUP($J$8,'الارقام القياسية 2016'!$A$2:$I$73,4,0) -> 270.2 | N97: =VLOOKUP($J$95,'نسب التأثير والسعر والكمية'!$A$4:$T$100,6,0) -> 0 | O97: =VLOOKUP($J$95,'نسب التأثير والسعر والكمية'!$A$4:$C$100,3,0) -> 1545 | P97: =VLOOKUP($J$95,'نسب التأثير والسعر والكمية'!$A$4:$C$100,2,0) -> 54 | Q97: 19 | R97: 212 | S97: 0
K98: اسفلت | L98: =VLOOKUP($C$5,'الارقام القياسية 2016'!$A$2:$I$73,5,0) -> 311 | M98: =VLOOKUP($J$8,'الارقام القياسية 2016'!$A$2:$I$73,5,0) -> 311 | N98: =VLOOKUP($J$95,'نسب التأثير والسعر والكمية'!$A$4:$T$100,7,0) -> 0.5 | O98: =VLOOKUP($J$95,'نسب التأثير والسعر والكمية'!$A$4:$C$100,3,0) -> 1545 | P98: =VLOOKUP($J$95,'نسب التأثير والسعر والكمية'!$A$4:$C$100,2,0) -> 54 | Q98: 19 | R98: 212 | S98: 1162707.241
K99: قطاعات معدنية | L99: =VLOOKUP($C$5,'الارقام القياسية 2016'!$A$2:$I$73,6,0) -> 250.6 | M99: =VLOOKUP($J$8,'الارقام القياسية 2016'!$A$2:$I$73,6,0) -> 233.5 | N99: =VLOOKUP($J$95,'نسب التأثير والسعر والكمية'!$A$4:$T$100,8,0) -> 0 | O99: =VLOOKUP($J$95,'نسب التأثير والسعر والكمية'!$A$4:$C$100,3,0) -> 1545 | P99: =VLOOKUP($J$95,'نسب التأثير والسعر والكمية'!$A$4:$C$100,2,0) -> 54 | Q99: 19 | R99: 212 | S99: 0
K100: غلاف معدني | L100: =VLOOKUP($C$5,'الارقام القياسية 2016'!$A$2:$I$73,7,0) -> 278.2 | M100: =VLOOKUP($J$8,'الارقام القياسية 2016'!$A$2:$I$73,7,0) -> 238.5 | N100: =VLOOKUP($J$95,'نسب التأثير والسعر والكمية'!$A$4:$T$100,9,0) -> 0 | O100: =VLOOKUP($J$95,'نسب التأثير والسعر والكمية'!$A$4:$C$100,3,0) -> 1545 | P100: =VLOOKUP($J$95,'نسب التأثير والسعر والكمية'!$A$4:$C$100,2,0) -> 54 | Q100: 19 | R100: 212 | S100: 0
K101: زوايا وكمرات | L101: =VLOOKUP($C$5,'الارقام القياسية 2016'!$A$2:$I$73,8,0) -> 271.6 | M101: =VLOOKUP($J$8,'الارقام القياسية 2016'!$A$2:$I$73,8,0) -> 276.9 | N101: =VLOOKUP($J$95,'نسب التأثير والسعر والكمية'!$A$4:$T$100,10,0) -> 0 | O101: =VLOOKUP($J$95,'نسب التأثير والسعر والكمية'!$A$4:$C$100,3,0) -> 1545 | P101: =VLOOKUP($J$95,'نسب التأثير والسعر والكمية'!$A$4:$C$100,2,0) -> 54 | Q101: 19 | R101: 212 | S101: 0
K102: مواسير صلب | L102: =VLOOKUP($C$5,'الارقام القياسية 2016'!$A$2:$I$73,9,0) -> 0 | M102: =VLOOKUP($J$8,'الارقام القياسية 2016'!$A$2:$I$73,9,0) -> 0 | N102: =VLOOKUP($J$95,'نسب التأثير والسعر والكمية'!$A$4:$T$100,11,0) -> 0 | O102: =VLOOKUP($J$95,'نسب التأثير والسعر والكمية'!$A$4:$C$100,3,0) -> 1545 | P102: =VLOOKUP($J$95,'نسب التأثير والسعر والكمية'!$A$4:$C$100,2,0) -> 54 | Q102: 19 | R102: 212
J104: رقم البند | K104: البند | L104: الرقم القياسي تاريخ الفتح الفني | M104: الرقم القياسي في شهر المستخلص | N104: نسبة التأثير | O104: كمية البند | P104: سعر البند | Q104: عدد الأيام للشهر | R104: الأيام الكلية للمستخلص | S104: الإجمالي
J105: 9 | K105: سولار | L105: =VLOOKUP($C$5,'الارقام القياسية 2016'!$A$2:$I$73,2,0) -> 266.2 | M105: =VLOOKUP($J$8,'الارقام القياسية 2016'!$A$2:$I$73,2,0) -> 319.6 | N105: =VLOOKUP($J$105,'نسب التأثير والسعر والكمية'!$A$4:$T$100,4,0) -> 0.15 | O105: =VLOOKUP($J$105,'نسب التأثير والسعر والكمية'!$A$4:$C$100,3,0) -> 45 | P105: =VLOOKUP($J$105,'نسب التأثير والسعر والكمية'!$A$4:$C$100,2,0) -> 254 | Q105: =$F$7 -> 19 | R105: =$F$4 -> 212 | S105: =IFERROR((L105*M105)/L105*N105*O105*P105*Q105/R105,"") -> 49109.10283
K106: اسمنت بورتلاند | L106: =VLOOKUP($C$5,'الارقام القياسية 2016'!$A$2:$I$73,3,0) -> 131.9 | M106: =VLOOKUP($J$8,'الارقام القياسية 2016'!$A$2:$I$73,3,0) -> 137.6 | N106: =VLOOKUP($J$105,'نسب التأثير والسعر والكمية'!$A$4:$T$100,5,0) -> 0 | O106: =VLOOKUP($J$105,'نسب التأثير والسعر والكمية'!$A$4:$C$100,3,0) -> 45 | P106: =VLOOKUP($J$105,'نسب التأثير والسعر والكمية'!$A$4:$C$100,2,0) -> 254 | Q106: =$F$7 -> 19 | R106: =$F$4 -> 212 | S106: 0
K107: حديد | L107: =VLOOKUP($C$5,'الارقام القياسية 2016'!$A$2:$I$73,4,0) -> 263.7 | M107: =VLOOKUP($J$8,'الارقام القياسية 2016'!$A$2:$I$73,4,0) -> 270.2 | N107: =VLOOKUP($J$105,'نسب التأثير والسعر والكمية'!$A$4:$T$100,6,0) -> 0 | O107: =VLOOKUP($J$105,'نسب التأثير والسعر والكمية'!$A$4:$C$100,3,0) -> 45 | P107: =VLOOKUP($J$105,'نسب التأثير والسعر والكمية'!$A$4:$C$100,2,0) -> 254 | Q107: 19 | R107: 212 | S107: 0
K108: اسفلت | L108: =VLOOKUP($C$5,'الارقام القياسية 2016'!$A$2:$I$73,5,0) -> 311 | M108: =VLOOKUP($J$8,'الارقام القياسية 2016'!$A$2:$I$73,5,0) -> 311 | N108: =VLOOKUP($J$105,'نسب التأثير والسعر والكمية'!$A$4:$T$100,7,0) -> 0.65 | O108: =VLOOKUP($J$105,'نسب التأثير والسعر والكمية'!$A$4:$C$100,3,0) -> 45 | P108: =VLOOKUP($J$105,'نسب التأثير والسعر والكمية'!$A$4:$C$100,2,0) -> 254 | Q108: 19 | R108: 212 | S108: 207079.7901
K109: قطاعات معدنية | L109: =VLOOKUP($C$5,'الارقام القياسية 2016'!$A$2:$I$73,6,0) -> 250.6 | M109: =VLOOKUP($J$8,'الارقام القياسية 2016'!$A$2:$I$73,6,0) -> 233.5 | N109: =VLOOKUP($J$105,'نسب التأثير والسعر والكمية'!$A$4:$T$100,8,0) -> 0 | O109: =VLOOKUP($J$105,'نسب التأثير والسعر والكمية'!$A$4:$C$100,3,0) -> 45 | P109: =VLOOKUP($J$105,'نسب التأثير والسعر والكمية'!$A$4:$C$100,2,0) -> 254 | Q109: 19 | R109: 212 | S109: 0
K110: غلاف معدني | L110: =VLOOKUP($C$5,'الارقام القياسية 2016'!$A$2:$I$73,7,0) -> 278.2 | M110: =VLOOKUP($J$8,'الارقام القياسية 2016'!$A$2:$I$73,7,0) -> 238.5 | N110: =VLOOKUP($J$105,'نسب التأثير والسعر والكمية'!$A$4:$T$100,9,0) -> 0 | O110: =VLOOKUP($J$105,'نسب التأثير والسعر والكمية'!$A$4:$C$100,3,0) -> 45 | P110: =VLOOKUP($J$105,'نسب التأثير والسعر والكمية'!$A$4:$C$100,2,0) -> 254 | Q110: 19 | R110: 212 | S110: 0
K111: زوايا وكمرات | L111: =VLOOKUP($C$5,'الارقام القياسية 2016'!$A$2:$I$73,8,0) -> 271.6 | M111: =VLOOKUP($J$8,'الارقام القياسية 2016'!$A$2:$I$73,8,0) -> 276.9 | N111: =VLOOKUP($J$105,'نسب التأثير والسعر والكمية'!$A$4:$T$100,10,0) -> 0 | O111: =VLOOKUP($J$105,'نسب التأثير والسعر والكمية'!$A$4:$C$100,3,0) -> 45 | P111: =VLOOKUP($J$105,'نسب التأثير والسعر والكمية'!$A$4:$C$100,2,0) -> 254 | Q111: 19 | R111: 212 | S111: 0
K112: مواسير صلب | L112: =VLOOKUP($C$5,'الارقام القياسية 2016'!$A$2:$I$73,9,0) -> 0 | M112: =VLOOKUP($J$8,'الارقام القياسية 2016'!$A$2:$I$73,9,0) -> 0 | N112: =VLOOKUP($J$105,'نسب التأثير والسعر والكمية'!$A$4:$T$100,11,0) -> 0 | O112: =VLOOKUP($J$105,'نسب التأثير والسعر والكمية'!$A$4:$C$100,3,0) -> 45 | P112: =VLOOKUP($J$105,'نسب التأثير والسعر والكمية'!$A$4:$C$100,2,0) -> 254 | Q112: 19 | R112: 212
J114: رقم البند | K114: البند | L114: الرقم القياسي تاريخ الفتح الفني | M114: الرقم القياسي في شهر المستخلص | N114: نسبة التأثير | O114: كمية البند | P114: سعر البند | Q114: عدد الأيام للشهر | R114: الأيام الكلية للمستخلص | S114: الإجمالي
J115: 10 | K115: سولار | L115: =VLOOKUP($C$5,'الارقام القياسية 2016'!$A$2:$I$73,2,0) -> 266.2 | M115: =VLOOKUP($J$8,'الارقام القياسية 2016'!$A$2:$I$73,2,0) -> 319.6 | N115: =VLOOKUP($J$115,'نسب التأثير والسعر والكمية'!$A$4:$T$100,4,0) -> 0.15 | O115: =VLOOKUP($J$115,'نسب التأثير والسعر والكمية'!$A$4:$C$100,3,0) -> 45 | P115: =VLOOKUP($J$115,'نسب التأثير والسعر والكمية'!$A$4:$C$100,2,0) -> 748 | Q115: =$F$7 -> 19 | R115: =$F$4 -> 212 | S115: =IFERROR((L115*M115)/L115*N115*O115*P115*Q115/R115,"") -> 144620.5075
K116: اسمنت بورتلاند | L116: =VLOOKUP($C$5,'الارقام القياسية 2016'!$A$2:$I$73,3,0) -> 131.9 | M116: =VLOOKUP($J$8,'الارقام القياسية 2016'!$A$2:$I$73,3,0) -> 137.6 | N116: =VLOOKUP($J$115,'نسب التأثير والسعر والكمية'!$A$4:$T$100,5,0) -> 0 | O116: =VLOOKUP($J$115,'نسب التأثير والسعر والكمية'!$A$4:$C$100,3,0) -> 45 | P116: =VLOOKUP($J$115,'نسب التأثير والسعر والكمية'!$A$4:$C$100,2,0) -> 748 | Q116: =$F$7 -> 19 | R116: =$F$4 -> 212 | S116: 0
K117: حديد | L117: =VLOOKUP($C$5,'الارقام القياسية 2016'!$A$2:$I$73,4,0) -> 263.7 | M117: =VLOOKUP($J$8,'الارقام القياسية 2016'!$A$2:$I$73,4,0) -> 270.2 | N117: =VLOOKUP($J$115,'نسب التأثير والسعر والكمية'!$A$4:$T$100,6,0) -> 0 | O117: =VLOOKUP($J$115,'نسب التأثير والسعر والكمية'!$A$4:$C$100,3,0) -> 45 | P117: =VLOOKUP($J$115,'نسب التأثير والسعر والكمية'!$A$4:$C$100,2,0) -> 748 | Q117: 19 | R117: 212 | S117: 0
K118: اسفلت | L118: =VLOOKUP($C$5,'الارقام القياسية 2016'!$A$2:$I$73,5,0) -> 311 | M118: =VLOOKUP($J$8,'الارقام القياسية 2016'!$A$2:$I$73,5,0) -> 311 | N118: =VLOOKUP($J$115,'نسب التأثير والسعر والكمية'!$A$4:$T$100,7,0) -> 0.5 | O118: =VLOOKUP($J$115,'نسب التأثير والسعر والكمية'!$A$4:$C$100,3,0) -> 45 | P118: =VLOOKUP($J$115,'نسب التأثير والسعر والكمية'!$A$4:$C$100,2,0) -> 748 | Q118: 19 | R118: 212 | S118: 469096.5566
K119: قطاعات معدنية | L119: =VLOOKUP($C$5,'الارقام القياسية 2016'!$A$2:$I$73,6,0) -> 250.6 | M119: =VLOOKUP($J$8,'الارقام القياسية 2016'!$A$2:$I$73,6,0) -> 233.5 | N119: =VLOOKUP($J$115,'نسب التأثير والسعر والكمية'!$A$4:$T$100,8,0) -> 0 | O119: =VLOOKUP($J$115,'نسب التأثير والسعر والكمية'!$A$4:$C$100,3,0) -> 45 | P119: =VLOOKUP($J$115,'نسب التأثير والسعر والكمية'!$A$4:$C$100,2,0) -> 748 | Q119: 19 | R119: 212 | S119: 0
K120: غلاف معدني | L120: =VLOOKUP($C$5,'الارقام القياسية 2016'!$A$2:$I$73,7,0) -> 278.2 | M120: =VLOOKUP($J$8,'الارقام القياسية 2016'!$A$2:$I$73,7,0) -> 238.5 | N120: =VLOOKUP($J$115,'نسب التأثير والسعر والكمية'!$A$4:$T$100,9,0) -> 0 | O120: =VLOOKUP($J$115,'نسب التأثير والسعر والكمية'!$A$4:$C$100,3,0) -> 45 | P120: =VLOOKUP($J$115,'نسب التأثير والسعر والكمية'!$A$4:$C$100,2,0) -> 748 | Q120: 19 | R120: 212 | S120: 0
K121: زوايا وكمرات | L121: =VLOOKUP($C$5,'الارقام القياسية 2016'!$A$2:$I$73,8,0) -> 271.6 | M121: =VLOOKUP($J$8,'الارقام القياسية 2016'!$A$2:$I$73,8,0) -> 276.9 | N121: =VLOOKUP($J$115,'نسب التأثير والسعر والكمية'!$A$4:$T$100,10,0) -> 0 | O121: =VLOOKUP($J$115,'نسب التأثير والسعر والكمية'!$A$4:$C$100,3,0) -> 45 | P121: =VLOOKUP($J$115,'نسب التأثير والسعر والكمية'!$A$4:$C$100,2,0) -> 748 | Q121: 19 | R121: 212 | S121: 0
K122: مواسير صلب | L122: =VLOOKUP($C$5,'الارقام القياسية 2016'!$A$2:$I$73,9,0) -> 0 | M122: =VLOOKUP($J$8,'الارقام القياسية 2016'!$A$2:$I$73,9,0) -> 0 | N122: =VLOOKUP($J$115,'نسب التأثير والسعر والكمية'!$A$4:$T$100,11,0) -> 0 | O122: =VLOOKUP($J$115,'نسب التأثير والسعر والكمية'!$A$4:$C$100,3,0) -> 45 | P122: =VLOOKUP($J$115,'نسب التأثير والسعر والكمية'!$A$4:$C$100,2,0) -> 748 | Q122: 19 | R122: 212
J124: رقم البند | K124: البند | L124: الرقم القياسي تاريخ الفتح الفني | M124: الرقم القياسي في شهر المستخلص | N124: نسبة التأثير | O124: كمية البند | P124: سعر البند | Q124: عدد الأيام للشهر | R124: الأيام الكلية للمستخلص | S124: الإجمالي
J125: 11 | K125: سولار | L125: =VLOOKUP($C$5,'الارقام القياسية 2016'!$A$2:$I$73,2,0) -> 266.2 | M125: =VLOOKUP($J$8,'الارقام القياسية 2016'!$A$2:$I$73,2,0) -> 319.6 | N125: =VLOOKUP($J$125,'نسب التأثير والسعر والكمية'!$A$4:$T$100,4,0) -> 0.15 | O125: =VLOOKUP($J$125,'نسب التأثير والسعر والكمية'!$A$4:$C$100,3,0) -> 24 | P125: =VLOOKUP($J$125,'نسب التأثير والسعر والكمية'!$A$4:$C$100,2,0) -> 545 | Q125: =$F$7 -> 19 | R125: =$F$4 -> 212 | S125: =IFERROR((L125*M125)/L125*N125*O125*P125*Q125/R125,"") -> 56198.3434
K126: اسمنت بورتلاند | L126: =VLOOKUP($C$5,'الارقام القياسية 2016'!$A$2:$I$73,3,0) -> 131.9 | M126: =VLOOKUP($J$8,'الارقام القياسية 2016'!$A$2:$I$73,3,0) -> 137.6 | N126: =VLOOKUP($J$125,'نسب التأثير والسعر والكمية'!$A$4:$T$100,5,0) -> 0 | O126: =VLOOKUP($J$125,'نسب التأثير والسعر والكمية'!$A$4:$C$100,3,0) -> 24 | P126: =VLOOKUP($J$125,'نسب التأثير والسعر والكمية'!$A$4:$C$100,2,0) -> 545 | Q126: =$F$7 -> 19 | R126: =$F$4 -> 212 | S126: 0
K127: حديد | L127: =VLOOKUP($C$5,'الارقام القياسية 2016'!$A$2:$I$73,4,0) -> 263.7 | M127: =VLOOKUP($J$8,'الارقام القياسية 2016'!$A$2:$I$73,4,0) -> 270.2 | N127: =VLOOKUP($J$125,'نسب التأثير والسعر والكمية'!$A$4:$T$100,6,0) -> 0 | O127: =VLOOKUP($J$125,'نسب التأثير والسعر والكمية'!$A$4:$C$100,3,0) -> 24 | P127: =VLOOKUP($J$125,'نسب التأثير والسعر والكمية'!$A$4:$C$100,2,0) -> 545 | Q127: 19 | R127: 212 | S127: 0
K128: اسفلت | L128: =VLOOKUP($C$5,'الارقام القياسية 2016'!$A$2:$I$73,5,0) -> 311 | M128: =VLOOKUP($J$8,'الارقام القياسية 2016'!$A$2:$I$73,5,0) -> 311 | N128: =VLOOKUP($J$125,'نسب التأثير والسعر والكمية'!$A$4:$T$100,7,0) -> 0.5 | O128: =VLOOKUP($J$125,'نسب التأثير والسعر والكمية'!$A$4:$C$100,3,0) -> 24 | P128: =VLOOKUP($J$125,'نسب التأثير والسعر والكمية'!$A$4:$C$100,2,0) -> 545 | Q128: 19 | R128: 212 | S128: 182287.0755
K129: قطاعات معدنية | L129: =VLOOKUP($C$5,'الارقام القياسية 2016'!$A$2:$I$73,6,0) -> 250.6 | M129: =VLOOKUP($J$8,'الارقام القياسية 2016'!$A$2:$I$73,6,0) -> 233.5 | N129: =VLOOKUP($J$125,'نسب التأثير والسعر والكمية'!$A$4:$T$100,8,0) -> 0 | O129: =VLOOKUP($J$125,'نسب التأثير والسعر والكمية'!$A$4:$C$100,3,0) -> 24 | P129: =VLOOKUP($J$125,'نسب التأثير والسعر والكمية'!$A$4:$C$100,2,0) -> 545 | Q129: 19 | R129: 212 | S129: 0
K130: غلاف معدني | L130: =VLOOKUP($C$5,'الارقام القياسية 2016'!$A$2:$I$73,7,0) -> 278.2 | M130: =VLOOKUP($J$8,'الارقام القياسية 2016'!$A$2:$I$73,7,0) -> 238.5 | N130: =VLOOKUP($J$125,'نسب التأثير والسعر والكمية'!$A$4:$T$100,9,0) -> 0 | O130: =VLOOKUP($J$125,'نسب التأثير والسعر والكمية'!$A$4:$C$100,3,0) -> 24 | P130: =VLOOKUP($J$125,'نسب التأثير والسعر والكمية'!$A$4:$C$100,2,0) -> 545 | Q130: 19 | R130: 212 | S130: 0
K131: زوايا وكمرات | L131: =VLOOKUP($C$5,'الارقام القياسية 2016'!$A$2:$I$73,8,0) -> 271.6 | M131: =VLOOKUP($J$8,'الارقام القياسية 2016'!$A$2:$I$73,8,0) -> 276.9 | N131: =VLOOKUP($J$125,'نسب التأثير والسعر والكمية'!$A$4:$T$100,10,0) -> 0 | O131: =VLOOKUP($J$125,'نسب التأثير والسعر والكمية'!$A$4:$C$100,3,0) -> 24 | P131: =VLOOKUP($J$125,'نسب التأثير والسعر والكمية'!$A$4:$C$100,2,0) -> 545 | Q131: 19 | R131: 212 | S131: 0
K132: مواسير صلب | L132: =VLOOKUP($C$5,'الارقام القياسية 2016'!$A$2:$I$73,9,0) -> 0 | M132: =VLOOKUP($J$8,'الارقام القياسية 2016'!$A$2:$I$73,9,0) -> 0 | N132: =VLOOKUP($J$125,'نسب التأثير والسعر والكمية'!$A$4:$T$100,11,0) -> 0 | O132: =VLOOKUP($J$125,'نسب التأثير والسعر والكمية'!$A$4:$C$100,3,0) -> 24 | P132: =VLOOKUP($J$125,'نسب التأثير والسعر والكمية'!$A$4:$C$100,2,0) -> 545 | Q132: 19 | R132: 212
J134: رقم البند | K134: البند | L134: الرقم القياسي تاريخ الفتح الفني | M134: الرقم القياسي في شهر المستخلص | N134: نسبة التأثير | O134: كمية البند | P134: سعر البند | Q134: عدد الأيام للشهر | R134: الأيام الكلية للمستخلص | S134: الإجمالي
J135: 12 | K135: سولار | L135: =VLOOKUP($C$5,'الارقام القياسية 2016'!$A$2:$I$73,2,0) -> 266.2 | M135: =VLOOKUP($J$8,'الارقام القياسية 2016'!$A$2:$I$73,2,0) -> 319.6 | N135: =VLOOKUP($J$135,'نسب التأثير والسعر والكمية'!$A$4:$T$100,4,0) -> 0.15 | O135: =VLOOKUP($J$135,'نسب التأثير والسعر والكمية'!$A$4:$C$100,3,0) -> 5 | P135: =VLOOKUP($J$135,'نسب التأثير والسعر والكمية'!$A$4:$C$100,2,0) -> 8987 | Q135: =$F$7 -> 19 | R135: =$F$4 -> 212 | S135: =IFERROR((L135*M135)/L135*N135*O135*P135*Q135/R135,"") -> 193063.6514
K136: اسمنت بورتلاند | L136: =VLOOKUP($C$5,'الارقام القياسية 2016'!$A$2:$I$73,3,0) -> 131.9 | M136: =VLOOKUP($J$8,'الارقام القياسية 2016'!$A$2:$I$73,3,0) -> 137.6 | N136: =VLOOKUP($J$135,'نسب التأثير والسعر والكمية'!$A$4:$T$100,5,0) -> 0.35 | O136: =VLOOKUP($J$135,'نسب التأثير والسعر والكمية'!$A$4:$C$100,3,0) -> 5 | P136: =VLOOKUP($J$135,'نسب التأثير والسعر والكمية'!$A$4:$C$100,2,0) -> 8987 | Q136: =$F$7 -> 19 | R136: =$F$4 -> 212 | S136: 193949.634
K137: حديد | L137: =VLOOKUP($C$5,'الارقام القياسية 2016'!$A$2:$I$73,4,0) -> 263.7 | M137: =VLOOKUP($J$8,'الارقام القياسية 2016'!$A$2:$I$73,4,0) -> 270.2 | N137: =VLOOKUP($J$135,'نسب التأثير والسعر والكمية'!$A$4:$T$100,6,0) -> 0 | O137: =VLOOKUP($J$135,'نسب التأثير والسعر والكمية'!$A$4:$C$100,3,0) -> 5 | P137: =VLOOKUP($J$135,'نسب التأثير والسعر والكمية'!$A$4:$C$100,2,0) -> 8987 | Q137: 19 | R137: 212 | S137: 0
K138: اسفلت | L138: =VLOOKUP($C$5,'الارقام القياسية 2016'!$A$2:$I$73,5,0) -> 311 | M138: =VLOOKUP($J$8,'الارقام القياسية 2016'!$A$2:$I$73,5,0) -> 311 | N138: =VLOOKUP($J$135,'نسب التأثير والسعر والكمية'!$A$4:$T$100,7,0) -> 0 | O138: =VLOOKUP($J$135,'نسب التأثير والسعر والكمية'!$A$4:$C$100,3,0) -> 5 | P138: =VLOOKUP($J$135,'نسب التأثير والسعر والكمية'!$A$4:$C$100,2,0) -> 8987 | Q138: 19 | R138: 212 | S138: 0
K139: قطاعات معدنية | L139: =VLOOKUP($C$5,'الارقام القياسية 2016'!$A$2:$I$73,6,0) -> 250.6 | M139: =VLOOKUP($J$8,'الارقام القياسية 2016'!$A$2:$I$73,6,0) -> 233.5 | N139: =VLOOKUP($J$135,'نسب التأثير والسعر والكمية'!$A$4:$T$100,8,0) -> 0 | O139: =VLOOKUP($J$135,'نسب التأثير والسعر والكمية'!$A$4:$C$100,3,0) -> 5 | P139: =VLOOKUP($J$135,'نسب التأثير والسعر والكمية'!$A$4:$C$100,2,0) -> 8987 | Q139: 19 | R139: 212 | S139: 0
K140: غلاف معدني | L140: =VLOOKUP($C$5,'الارقام القياسية 2016'!$A$2:$I$73,7,0) -> 278.2 | M140: =VLOOKUP($J$8,'الارقام القياسية 2016'!$A$2:$I$73,7,0) -> 238.5 | N140: =VLOOKUP($J$135,'نسب التأثير والسعر والكمية'!$A$4:$T$100,9,0) -> 0 | O140: =VLOOKUP($J$135,'نسب التأثير والسعر والكمية'!$A$4:$C$100,3,0) -> 5 | P140: =VLOOKUP($J$135,'نسب التأثير والسعر والكمية'!$A$4:$C$100,2,0) -> 8987 | Q140: 19 | R140: 212 | S140: 0
K141: زوايا وكمرات | L141: =VLOOKUP($C$5,'الارقام القياسية 2016'!$A$2:$I$73,8,0) -> 271.6 | M141: =VLOOKUP($J$8,'الارقام القياسية 2016'!$A$2:$I$73,8,0) -> 276.9 | N141: =VLOOKUP($J$135,'نسب التأثير والسعر والكمية'!$A$4:$T$100,10,0) -> 0 | O141: =VLOOKUP($J$135,'نسب التأثير والسعر والكمية'!$A$4:$C$100,3,0) -> 5 | P141: =VLOOKUP($J$135,'نسب التأثير والسعر والكمية'!$A$4:$C$100,2,0) -> 8987 | Q141: 19 | R141: 212 | S141: 0
K142: مواسير صلب | L142: =VLOOKUP($C$5,'الارقام القياسية 2016'!$A$2:$I$73,9,0) -> 0 | M142: =VLOOKUP($J$8,'الارقام القياسية 2016'!$A$2:$I$73,9,0) -> 0 | N142: =VLOOKUP($J$135,'نسب التأثير والسعر والكمية'!$A$4:$T$100,11,0) -> 0 | O142: =VLOOKUP($J$135,'نسب التأثير والسعر والكمية'!$A$4:$C$100,3,0) -> 5 | P142: =VLOOKUP($J$135,'نسب التأثير والسعر والكمية'!$A$4:$C$100,2,0) -> 8987 | Q142: 19 | R142: 212
J144: رقم البند | K144: البند | L144: الرقم القياسي تاريخ الفتح الفني | M144: الرقم القياسي في شهر المستخلص | N144: نسبة التأثير | O144: كمية البند | P144: سعر البند | Q144: عدد الأيام للشهر | R144: الأيام الكلية للمستخلص | S144: الإجمالي
J145: 13 | K145: سولار | L145: =VLOOKUP($C$5,'الارقام القياسية 2016'!$A$2:$I$73,2,0) -> 266.2 | M145: =VLOOKUP($J$8,'الارقام القياسية 2016'!$A$2:$I$73,2,0) -> 319.6 | N145: =VLOOKUP($J$145,'نسب التأثير والسعر والكمية'!$A$4:$T$100,4,0) -> 0.15 | O145: =VLOOKUP($J$145,'نسب التأثير والسعر والكمية'!$A$4:$C$100,3,0) -> 545 | P145: =VLOOKUP($J$145,'نسب التأثير والسعر والكمية'!$A$4:$C$100,2,0) -> 5454 | Q145: =$F$7 -> 19 | R145: =$F$4 -> 212 | S145: =IFERROR((L145*M145)/L145*N145*O145*P145*Q145/R145,"") -> 12771073.54
K146: اسمنت بورتلاند | L146: =VLOOKUP($C$5,'الارقام القياسية 2016'!$A$2:$I$73,3,0) -> 131.9 | M146: =VLOOKUP($J$8,'الارقام القياسية 2016'!$A$2:$I$73,3,0) -> 137.6 | N146: =VLOOKUP($J$145,'نسب التأثير والسعر والكمية'!$A$4:$T$100,5,0) -> 0 | O146: =VLOOKUP($J$145,'نسب التأثير والسعر والكمية'!$A$4:$C$100,3,0) -> 545 | P146: =VLOOKUP($J$145,'نسب التأثير والسعر والكمية'!$A$4:$C$100,2,0) -> 5454 | Q146: =$F$7 -> 19 | R146: =$F$4 -> 212 | S146: 0
K147: حديد | L147: =VLOOKUP($C$5,'الارقام القياسية 2016'!$A$2:$I$73,4,0) -> 263.7 | M147: =VLOOKUP($J$8,'الارقام القياسية 2016'!$A$2:$I$73,4,0) -> 270.2 | N147: =VLOOKUP($J$145,'نسب التأثير والسعر والكمية'!$A$4:$T$100,6,0) -> 0 | O147: =VLOOKUP($J$145,'نسب التأثير والسعر والكمية'!$A$4:$C$100,3,0) -> 545 | P147: =VLOOKUP($J$145,'نسب التأثير والسعر والكمية'!$A$4:$C$100,2,0) -> 5454 | Q147: 19 | R147: 212 | S147: 0
K148: اسفلت | L148: =VLOOKUP($C$5,'الارقام القياسية 2016'!$A$2:$I$73,5,0) -> 311 | M148: =VLOOKUP($J$8,'الارقام القياسية 2016'!$A$2:$I$73,5,0) -> 311 | N148: =VLOOKUP($J$145,'نسب التأثير والسعر والكمية'!$A$4:$T$100,7,0) -> 0 | O148: =VLOOKUP($J$145,'نسب التأثير والسعر والكمية'!$A$4:$C$100,3,0) -> 545 | P148: =VLOOKUP($J$145,'نسب التأثير والسعر والكمية'!$A$4:$C$100,2,0) -> 5454 | Q148: 19 | R148: 212 | S148: 0
K149: قطاعات معدنية | L149: =VLOOKUP($C$5,'الارقام القياسية 2016'!$A$2:$I$73,6,0) -> 250.6 | M149: =VLOOKUP($J$8,'الارقام القياسية 2016'!$A$2:$I$73,6,0) -> 233.5 | N149: =VLOOKUP($J$145,'نسب التأثير والسعر والكمية'!$A$4:$T$100,8,0) -> 0 | O149: =VLOOKUP($J$145,'نسب التأثير والسعر والكمية'!$A$4:$C$100,3,0) -> 545 | P149: =VLOOKUP($J$145,'نسب التأثير والسعر والكمية'!$A$4:$C$100,2,0) -> 5454 | Q149: 19 | R149: 212 | S149: 0
K150: غلاف معدني | L150: =VLOOKUP($C$5,'الارقام القياسية 2016'!$A$2:$I$73,7,0) -> 278.2 | M150: =VLOOKUP($J$8,'الارقام القياسية 2016'!$A$2:$I$73,7,0) -> 238.5 | N150: =VLOOKUP($J$145,'نسب التأثير والسعر والكمية'!$A$4:$T$100,9,0) -> 0 | O150: =VLOOKUP($J$145,'نسب التأثير والسعر والكمية'!$A$4:$C$100,3,0) -> 545 | P150: =VLOOKUP($J$145,'نسب التأثير والسعر والكمية'!$A$4:$C$100,2,0) -> 5454 | Q150: 19 | R150: 212 | S150: 0
K151: زوايا وكمرات | L151: =VLOOKUP($C$5,'الارقام القياسية 2016'!$A$2:$I$73,8,0) -> 271.6 | M151: =VLOOKUP($J$8,'الارقام القياسية 2016'!$A$2:$I$73,8,0) -> 276.9 | N151: =VLOOKUP($J$145,'نسب التأثير والسعر والكمية'!$A$4:$T$100,10,0) -> 0 | O151: =VLOOKUP($J$145,'نسب التأثير والسعر والكمية'!$A$4:$C$100,3,0) -> 545 | P151: =VLOOKUP($J$145,'نسب التأثير والسعر والكمية'!$A$4:$C$100,2,0) -> 5454 | Q151: 19 | R151: 212 | S151: 0
K152: مواسير صلب | L152: =VLOOKUP($C$5,'الارقام القياسية 2016'!$A$2:$I$73,9,0) -> 0 | M152: =VLOOKUP($J$8,'الارقام القياسية 2016'!$A$2:$I$73,9,0) -> 0 | N152: =VLOOKUP($J$145,'نسب التأثير والسعر والكمية'!$A$4:$T$100,11,0) -> 0 | O152: =VLOOKUP($J$145,'نسب التأثير والسعر والكمية'!$A$4:$C$100,3,0) -> 545 | P152: =VLOOKUP($J$145,'نسب التأثير والسعر والكمية'!$A$4:$C$100,2,0) -> 5454 | Q152: 19 | R152: 212
J154: رقم البند | K154: البند | L154: الرقم القياسي تاريخ الفتح الفني | M154: الرقم القياسي في شهر المستخلص | N154: نسبة التأثير | O154: كمية البند | P154: سعر البند | Q154: عدد الأيام للشهر | R154: الأيام الكلية للمستخلص | S154: الإجمالي
J155: 14 | K155: سولار | L155: =VLOOKUP($C$5,'الارقام القياسية 2016'!$A$2:$I$73,2,0) -> 266.2 | M155: =VLOOKUP($J$8,'الارقام القياسية 2016'!$A$2:$I$73,2,0) -> 319.6 | N155: =VLOOKUP($J$155,'نسب التأثير والسعر والكمية'!$A$4:$T$100,4,0) -> 0.1 | O155: =VLOOKUP($J$155,'نسب التأثير والسعر والكمية'!$A$4:$C$100,3,0) -> 2 | P155: =VLOOKUP($J$155,'نسب التأثير والسعر والكمية'!$A$4:$C$100,2,0) -> 878 | Q155: =$F$7 -> 19 | R155: =$F$4 -> 212 | S155: =IFERROR((L155*M155)/L155*N155*O155*P155*Q155/R155,"") -> 5029.780377
K156: اسمنت بورتلاند | L156: =VLOOKUP($C$5,'الارقام القياسية 2016'!$A$2:$I$73,3,0) -> 131.9 | M156: =VLOOKUP($J$8,'الارقام القياسية 2016'!$A$2:$I$73,3,0) -> 137.6 | N156: =VLOOKUP($J$155,'نسب التأثير والسعر والكمية'!$A$4:$T$100,5,0) -> 0.25 | O156: =VLOOKUP($J$155,'نسب التأثير والسعر والكمية'!$A$4:$C$100,3,0) -> 2 | P156: =VLOOKUP($J$155,'نسب التأثير والسعر والكمية'!$A$4:$C$100,2,0) -> 878 | Q156: =$F$7 -> 19 | R156: =$F$4 -> 212 | S156: 5413.781132
K157: حديد | L157: =VLOOKUP($C$5,'الارقام القياسية 2016'!$A$2:$I$73,4,0) -> 263.7 | M157: =VLOOKUP($J$8,'الارقام القياسية 2016'!$A$2:$I$73,4,0) -> 270.2 | N157: =VLOOKUP($J$155,'نسب التأثير والسعر والكمية'!$A$4:$T$100,6,0) -> 0 | O157: =VLOOKUP($J$155,'نسب التأثير والسعر والكمية'!$A$4:$C$100,3,0) -> 2 | P157: =VLOOKUP($J$155,'نسب التأثير والسعر والكمية'!$A$4:$C$100,2,0) -> 878 | Q157: 19 | R157: 212 | S157: 0
K158: اسفلت | L158: =VLOOKUP($C$5,'الارقام القياسية 2016'!$A$2:$I$73,5,0) -> 311 | M158: =VLOOKUP($J$8,'الارقام القياسية 2016'!$A$2:$I$73,5,0) -> 311 | N158: =VLOOKUP($J$155,'نسب التأثير والسعر والكمية'!$A$4:$T$100,7,0) -> 0 | O158: =VLOOKUP($J$155,'نسب التأثير والسعر والكمية'!$A$4:$C$100,3,0) -> 2 | P158: =VLOOKUP($J$155,'نسب التأثير والسعر والكمية'!$A$4:$C$100,2,0) -> 878 | Q158: 19 | R158: 212 | S158: 0
K159: قطاعات معدنية | L159: =VLOOKUP($C$5,'الارقام القياسية 2016'!$A$2:$I$73,6,0) -> 250.6 | M159: =VLOOKUP($J$8,'الارقام القياسية 2016'!$A$2:$I$73,6,0) -> 233.5 | N159: =VLOOKUP($J$155,'نسب التأثير والسعر والكمية'!$A$4:$T$100,8,0) -> 0 | O159: =VLOOKUP($J$155,'نسب التأثير والسعر والكمية'!$A$4:$C$100,3,0) -> 2 | P159: =VLOOKUP($J$155,'نسب التأثير والسعر والكمية'!$A$4:$C$100,2,0) -> 878 | Q159: 19 | R159: 212 | S159: 0
K160: غلاف معدني | L160: =VLOOKUP($C$5,'الارقام القياسية 2016'!$A$2:$I$73,7,0) -> 278.2 | M160: =VLOOKUP($J$8,'الارقام القياسية 2016'!$A$2:$I$73,7,0) -> 238.5 | N160: =VLOOKUP($J$155,'نسب التأثير والسعر والكمية'!$A$4:$T$100,9,0) -> 0 | O160: =VLOOKUP($J$155,'نسب التأثير والسعر والكمية'!$A$4:$C$100,3,0) -> 2 | P160: =VLOOKUP($J$155,'نسب التأثير والسعر والكمية'!$A$4:$C$100,2,0) -> 878 | Q160: 19 | R160: 212 | S160: 0
K161: زوايا وكمرات | L161: =VLOOKUP($C$5,'الارقام القياسية 2016'!$A$2:$I$73,8,0) -> 271.6 | M161: =VLOOKUP($J$8,'الارقام القياسية 2016'!$A$2:$I$73,8,0) -> 276.9 | N161: =VLOOKUP($J$155,'نسب التأثير والسعر والكمية'!$A$4:$T$100,10,0) -> 0 | O161: =VLOOKUP($J$155,'نسب التأثير والسعر والكمية'!$A$4:$C$100,3,0) -> 2 | P161: =VLOOKUP($J$155,'نسب التأثير والسعر والكمية'!$A$4:$C$100,2,0) -> 878 | Q161: 19 | R161: 212 | S161: 0
K162: مواسير صلب | L162: =VLOOKUP($C$5,'الارقام القياسية 2016'!$A$2:$I$73,9,0) -> 0 | M162: =VLOOKUP($J$8,'الارقام القياسية 2016'!$A$2:$I$73,9,0) -> 0 | N162: =VLOOKUP($J$155,'نسب التأثير والسعر والكمية'!$A$4:$T$100,11,0) -> 0 | O162: =VLOOKUP($J$155,'نسب التأثير والسعر والكمية'!$A$4:$C$100,3,0) -> 2 | P162: =VLOOKUP($J$155,'نسب التأثير والسعر والكمية'!$A$4:$C$100,2,0) -> 878 | Q162: 19 | R162: 212
J164: رقم البند | K164: البند | L164: الرقم القياسي تاريخ الفتح الفني | M164: الرقم القياسي في شهر المستخلص | N164: نسبة التأثير | O164: كمية البند | P164: سعر البند | Q164: عدد الأيام للشهر | R164: الأيام الكلية للمستخلص | S164: الإجمالي
J165: 15 | K165: سولار | L165: =VLOOKUP($C$5,'الارقام القياسية 2016'!$A$2:$I$73,2,0) -> 266.2 | M165: =VLOOKUP($J$8,'الارقام القياسية 2016'!$A$2:$I$73,2,0) -> 319.6 | N165: =VLOOKUP($J$165,'نسب التأثير والسعر والكمية'!$A$4:$T$100,4,0) -> 0.1 | O165: =VLOOKUP($J$165,'نسب التأثير والسعر والكمية'!$A$4:$C$100,3,0) -> 45 | P165: =VLOOKUP($J$165,'نسب التأثير والسعر والكمية'!$A$4:$C$100,2,0) -> 54 | Q165: =$F$7 -> 19 | R165: =$F$4 -> 212 | S165: =IFERROR((L165*M165)/L165*N165*O165*P165*Q165/R165,"") -> 6960.345283
K166: اسمنت بورتلاند | L166: =VLOOKUP($C$5,'الارقام القياسية 2016'!$A$2:$I$73,3,0) -> 131.9 | M166: =VLOOKUP($J$8,'الارقام القياسية 2016'!$A$2:$I$73,3,0) -> 137.6 | N166: =VLOOKUP($J$165,'نسب التأثير والسعر والكمية'!$A$4:$T$100,5,0) -> 0.25 | O166: =VLOOKUP($J$165,'نسب التأثير والسعر والكمية'!$A$4:$C$100,3,0) -> 45 | P166: =VLOOKUP($J$165,'نسب التأثير والسعر والكمية'!$A$4:$C$100,2,0) -> 54 | Q166: =$F$7 -> 19 | R166: =$F$4 -> 212 | S166: 7491.735849
K167: حديد | L167: =VLOOKUP($C$5,'الارقام القياسية 2016'!$A$2:$I$73,4,0) -> 263.7 | M167: =VLOOKUP($J$8,'الارقام القياسية 2016'!$A$2:$I$73,4,0) -> 270.2 | N167: =VLOOKUP($J$165,'نسب التأثير والسعر والكمية'!$A$4:$T$100,6,0) -> 0 | O167: =VLOOKUP($J$165,'نسب التأثير والسعر والكمية'!$A$4:$C$100,3,0) -> 45 | P167: =VLOOKUP($J$165,'نسب التأثير والسعر والكمية'!$A$4:$C$100,2,0) -> 54 | Q167: 19 | R167: 212 | S167: 0
K168: اسفلت | L168: =VLOOKUP($C$5,'الارقام القياسية 2016'!$A$2:$I$73,5,0) -> 311 | M168: =VLOOKUP($J$8,'الارقام القياسية 2016'!$A$2:$I$73,5,0) -> 311 | N168: =VLOOKUP($J$165,'نسب التأثير والسعر والكمية'!$A$4:$T$100,7,0) -> 0 | O168: =VLOOKUP($J$165,'نسب التأثير والسعر والكمية'!$A$4:$C$100,3,0) -> 45 | P168: =VLOOKUP($J$165,'نسب التأثير والسعر والكمية'!$A$4:$C$100,2,0) -> 54 | Q168: 19 | R168: 212 | S168: 0
K169: قطاعات معدنية | L169: =VLOOKUP($C$5,'الارقام القياسية 2016'!$A$2:$I$73,6,0) -> 250.6 | M169: =VLOOKUP($J$8,'الارقام القياسية 2016'!$A$2:$I$73,6,0) -> 233.5 | N169: =VLOOKUP($J$165,'نسب التأثير والسعر والكمية'!$A$4:$T$100,8,0) -> 0 | O169: =VLOOKUP($J$165,'نسب التأثير والسعر والكمية'!$A$4:$C$100,3,0) -> 45 | P169: =VLOOKUP($J$165,'نسب التأثير والسعر والكمية'!$A$4:$C$100,2,0) -> 54 | Q169: 19 | R169: 212 | S169: 0
K170: غلاف معدني | L170: =VLOOKUP($C$5,'الارقام القياسية 2016'!$A$2:$I$73,7,0) -> 278.2 | M170: =VLOOKUP($J$8,'الارقام القياسية 2016'!$A$2:$I$73,7,0) -> 238.5 | N170: =VLOOKUP($J$165,'نسب التأثير والسعر والكمية'!$A$4:$T$100,9,0) -> 0 | O170: =VLOOKUP($J$165,'نسب التأثير والسعر والكمية'!$A$4:$C$100,3,0) -> 45 | P170: =VLOOKUP($J$165,'نسب التأثير والسعر والكمية'!$A$4:$C$100,2,0) -> 54 | Q170: 19 | R170: 212 | S170: 0
K171: زوايا وكمرات | L171: =VLOOKUP($C$5,'الارقام القياسية 2016'!$A$2:$I$73,8,0) -> 271.6 | M171: =VLOOKUP($J$8,'الارقام القياسية 2016'!$A$2:$I$73,8,0) -> 276.9 | N171: =VLOOKUP($J$165,'نسب التأثير والسعر والكمية'!$A$4:$T$100,10,0) -> 0 | O171: =VLOOKUP($J$165,'نسب التأثير والسعر والكمية'!$A$4:$C$100,3,0) -> 45 | P171: =VLOOKUP($J$165,'نسب التأثير والسعر والكمية'!$A$4:$C$100,2,0) -> 54 | Q171: 19 | R171: 212 | S171: 0
K172: مواسير صلب | L172: =VLOOKUP($C$5,'الارقام القياسية 2016'!$A$2:$I$73,9,0) -> 0 | M172: =VLOOKUP($J$8,'الارقام القياسية 2016'!$A$2:$I$73,9,0) -> 0 | N172: =VLOOKUP($J$165,'نسب التأثير والسعر والكمية'!$A$4:$T$100,11,0) -> 0 | O172: =VLOOKUP($J$165,'نسب التأثير والسعر والكمية'!$A$4:$C$100,3,0) -> 45 | P172: =VLOOKUP($J$165,'نسب التأثير والسعر والكمية'!$A$4:$C$100,2,0) -> 54 | Q172: 19 | R172: 212
J174: رقم البند | K174: البند | L174: الرقم القياسي تاريخ الفتح الفني | M174: الرقم القياسي في شهر المستخلص | N174: نسبة التأثير | O174: كمية البند | P174: سعر البند | Q174: عدد الأيام للشهر | R174: الأيام الكلية للمستخلص | S174: الإجمالي
J175: 16 | K175: سولار | L175: =VLOOKUP($C$5,'الارقام القياسية 2016'!$A$2:$I$73,2,0) -> 266.2 | M175: =VLOOKUP($J$8,'الارقام القياسية 2016'!$A$2:$I$73,2,0) -> 319.6 | N175: =VLOOKUP($J$175,'نسب التأثير والسعر والكمية'!$A$4:$T$100,4,0) -> 0.1 | O175: =VLOOKUP($J$175,'نسب التأثير والسعر والكمية'!$A$4:$C$100,3,0) -> 45 | P175: =VLOOKUP($J$175,'نسب التأثير والسعر والكمية'!$A$4:$C$100,2,0) -> 8 | Q175: =$F$7 -> 19 | R175: =$F$4 -> 212 | S175: =IFERROR((L175*M175)/L175*N175*O175*P175*Q175/R175,"") -> 1031.162264
K176: اسمنت بورتلاند | L176: =VLOOKUP($C$5,'الارقام القياسية 2016'!$A$2:$I$73,3,0) -> 131.9 | M176: =VLOOKUP($J$8,'الارقام القياسية 2016'!$A$2:$I$73,3,0) -> 137.6 | N176: =VLOOKUP($J$175,'نسب التأثير والسعر والكمية'!$A$4:$T$100,5,0) -> 0.2 | O176: =VLOOKUP($J$175,'نسب التأثير والسعر والكمية'!$A$4:$C$100,3,0) -> 45 | P176: =VLOOKUP($J$175,'نسب التأثير والسعر والكمية'!$A$4:$C$100,2,0) -> 8 | Q176: =$F$7 -> 19 | R176: =$F$4 -> 212 | S176: 887.909434
K177: حديد | L177: =VLOOKUP($C$5,'الارقام القياسية 2016'!$A$2:$I$73,4,0) -> 263.7 | M177: =VLOOKUP($J$8,'الارقام القياسية 2016'!$A$2:$I$73,4,0) -> 270.2 | N177: =VLOOKUP($J$175,'نسب التأثير والسعر والكمية'!$A$4:$T$100,6,0) -> 0.35 | O177: =VLOOKUP($J$175,'نسب التأثير والسعر والكمية'!$A$4:$C$100,3,0) -> 45 | P177: =VLOOKUP($J$175,'نسب التأثير والسعر والكمية'!$A$4:$C$100,2,0) -> 8 | Q177: 19 | R177: 212 | S177: 3051.220755
K178: اسفلت | L178: =VLOOKUP($C$5,'الارقام القياسية 2016'!$A$2:$I$73,5,0) -> 311 | M178: =VLOOKUP($J$8,'الارقام القياسية 2016'!$A$2:$I$73,5,0) -> 311 | N178: =VLOOKUP($J$175,'نسب التأثير والسعر والكمية'!$A$4:$T$100,7,0) -> 0 | O178: =VLOOKUP($J$175,'نسب التأثير والسعر والكمية'!$A$4:$C$100,3,0) -> 45 | P178: =VLOOKUP($J$175,'نسب التأثير والسعر والكمية'!$A$4:$C$100,2,0) -> 8 | Q178: 19 | R178: 212 | S178: 0
K179: قطاعات معدنية | L179: =VLOOKUP($C$5,'الارقام القياسية 2016'!$A$2:$I$73,6,0) -> 250.6 | M179: =VLOOKUP($J$8,'الارقام القياسية 2016'!$A$2:$I$73,6,0) -> 233.5 | N179: =VLOOKUP($J$175,'نسب التأثير والسعر والكمية'!$A$4:$T$100,8,0) -> 0 | O179: =VLOOKUP($J$175,'نسب التأثير والسعر والكمية'!$A$4:$C$100,3,0) -> 45 | P179: =VLOOKUP($J$175,'نسب التأثير والسعر والكمية'!$A$4:$C$100,2,0) -> 8 | Q179: 19 | R179: 212 | S179: 0
K180: غلاف معدني | L180: =VLOOKUP($C$5,'الارقام القياسية 2016'!$A$2:$I$73,7,0) -> 278.2 | M180: =VLOOKUP($J$8,'الارقام القياسية 2016'!$A$2:$I$73,7,0) -> 238.5 | N180: =VLOOKUP($J$175,'نسب التأثير والسعر والكمية'!$A$4:$T$100,9,0) -> 0 | O180: =VLOOKUP($J$175,'نسب التأثير والسعر والكمية'!$A$4:$C$100,3,0) -> 45 | P180: =VLOOKUP($J$175,'نسب التأثير والسعر والكمية'!$A$4:$C$100,2,0) -> 8 | Q180: 19 | R180: 212 | S180: 0
K181: زوايا وكمرات | L181: =VLOOKUP($C$5,'الارقام القياسية 2016'!$A$2:$I$73,8,0) -> 271.6 | M181: =VLOOKUP($J$8,'الارقام القياسية 2016'!$A$2:$I$73,8,0) -> 276.9 | N181: =VLOOKUP($J$175,'نسب التأثير والسعر والكمية'!$A$4:$T$100,10,0) -> 0 | O181: =VLOOKUP($J$175,'نسب التأثير والسعر والكمية'!$A$4:$C$100,3,0) -> 45 | P181: =VLOOKUP($J$175,'نسب التأثير والسعر والكمية'!$A$4:$C$100,2,0) -> 8 | Q181: 19 | R181: 212 | S181: 0
K182: مواسير صلب | L182: =VLOOKUP($C$5,'الارقام القياسية 2016'!$A$2:$I$73,9,0) -> 0 | M182: =VLOOKUP($J$8,'الارقام القياسية 2016'!$A$2:$I$73,9,0) -> 0 | N182: =VLOOKUP($J$175,'نسب التأثير والسعر والكمية'!$A$4:$T$100,11,0) -> 0 | O182: =VLOOKUP($J$175,'نسب التأثير والسعر والكمية'!$A$4:$C$100,3,0) -> 45 | P182: =VLOOKUP($J$175,'نسب التأثير والسعر والكمية'!$A$4:$C$100,2,0) -> 8 | Q182: 19 | R182: 212
J184: رقم البند | K184: البند | L184: الرقم القياسي تاريخ الفتح الفني | M184: الرقم القياسي في شهر المستخلص | N184: نسبة التأثير | O184: كمية البند | P184: سعر البند | Q184: عدد الأيام للشهر | R184: الأيام الكلية للمستخلص | S184: الإجمالي
J185: 17 | K185: سولار | L185: =VLOOKUP($C$5,'الارقام القياسية 2016'!$A$2:$I$73,2,0) -> 266.2 | M185: =VLOOKUP($J$8,'الارقام القياسية 2016'!$A$2:$I$73,2,0) -> 319.6 | N185: =VLOOKUP($J$185,'نسب التأثير والسعر والكمية'!$A$4:$T$100,4,0) -> 0.15 | O185: =VLOOKUP($J$185,'نسب التأثير والسعر والكمية'!$A$4:$C$100,3,0) -> 15 | P185: =VLOOKUP($J$185,'نسب التأثير والسعر والكمية'!$A$4:$C$100,2,0) -> 5486 | Q185: =$F$7 -> 19 | R185: =$F$4 -> 212 | S185: =IFERROR((L185*M185)/L185*N185*O185*P185*Q185/R185,"") -> 353559.7613
K186: اسمنت بورتلاند | L186: =VLOOKUP($C$5,'الارقام القياسية 2016'!$A$2:$I$73,3,0) -> 131.9 | M186: =VLOOKUP($J$8,'الارقام القياسية 2016'!$A$2:$I$73,3,0) -> 137.6 | N186: =VLOOKUP($J$185,'نسب التأثير والسعر والكمية'!$A$4:$T$100,5,0) -> 0.3 | O186: =VLOOKUP($J$185,'نسب التأثير والسعر والكمية'!$A$4:$C$100,3,0) -> 15 | P186: =VLOOKUP($J$185,'نسب التأثير والسعر والكمية'!$A$4:$C$100,2,0) -> 5486 | Q186: =$F$7 -> 19 | R186: =$F$4 -> 212 | S186: 304441.9472
K187: حديد | L187: =VLOOKUP($C$5,'الارقام القياسية 2016'!$A$2:$I$73,4,0) -> 263.7 | M187: =VLOOKUP($J$8,'الارقام القياسية 2016'!$A$2:$I$73,4,0) -> 270.2 | N187: =VLOOKUP($J$185,'نسب التأثير والسعر والكمية'!$A$4:$T$100,6,0) -> 0.1 | O187: =VLOOKUP($J$185,'نسب التأثير والسعر والكمية'!$A$4:$C$100,3,0) -> 15 | P187: =VLOOKUP($J$185,'نسب التأثير والسعر والكمية'!$A$4:$C$100,2,0) -> 5486 | Q187: 19 | R187: 212 | S187: 199273.7745
K188: اسفلت | L188: =VLOOKUP($C$5,'الارقام القياسية 2016'!$A$2:$I$73,5,0) -> 311 | M188: =VLOOKUP($J$8,'الارقام القياسية 2016'!$A$2:$I$73,5,0) -> 311 | N188: =VLOOKUP($J$185,'نسب التأثير والسعر والكمية'!$A$4:$T$100,7,0) -> 0 | O188: =VLOOKUP($J$185,'نسب التأثير والسعر والكمية'!$A$4:$C$100,3,0) -> 15 | P188: =VLOOKUP($J$185,'نسب التأثير والسعر والكمية'!$A$4:$C$100,2,0) -> 5486 | Q188: 19 | R188: 212 | S188: 0
K189: قطاعات معدنية | L189: =VLOOKUP($C$5,'الارقام القياسية 2016'!$A$2:$I$73,6,0) -> 250.6 | M189: =VLOOKUP($J$8,'الارقام القياسية 2016'!$A$2:$I$73,6,0) -> 233.5 | N189: =VLOOKUP($J$185,'نسب التأثير والسعر والكمية'!$A$4:$T$100,8,0) -> 0 | O189: =VLOOKUP($J$185,'نسب التأثير والسعر والكمية'!$A$4:$C$100,3,0) -> 15 | P189: =VLOOKUP($J$185,'نسب التأثير والسعر والكمية'!$A$4:$C$100,2,0) -> 5486 | Q189: 19 | R189: 212 | S189: 0
K190: غلاف معدني | L190: =VLOOKUP($C$5,'الارقام القياسية 2016'!$A$2:$I$73,7,0) -> 278.2 | M190: =VLOOKUP($J$8,'الارقام القياسية 2016'!$A$2:$I$73,7,0) -> 238.5 | N190: =VLOOKUP($J$185,'نسب التأثير والسعر والكمية'!$A$4:$T$100,9,0) -> 0 | O190: =VLOOKUP($J$185,'نسب التأثير والسعر والكمية'!$A$4:$C$100,3,0) -> 15 | P190: =VLOOKUP($J$185,'نسب التأثير والسعر والكمية'!$A$4:$C$100,2,0) -> 5486 | Q190: 19 | R190: 212 | S190: 0
K191: زوايا وكمرات | L191: =VLOOKUP($C$5,'الارقام القياسية 2016'!$A$2:$I$73,8,0) -> 271.6 | M191: =VLOOKUP($J$8,'الارقام القياسية 2016'!$A$2:$I$73,8,0) -> 276.9 | N191: =VLOOKUP($J$185,'نسب التأثير والسعر والكمية'!$A$4:$T$100,10,0) -> 0 | O191: =VLOOKUP($J$185,'نسب التأثير والسعر والكمية'!$A$4:$C$100,3,0) -> 15 | P191: =VLOOKUP($J$185,'نسب التأثير والسعر والكمية'!$A$4:$C$100,2,0) -> 5486 | Q191: 19 | R191: 212 | S191: 0
K192: مواسير صلب | L192: =VLOOKUP($C$5,'الارقام القياسية 2016'!$A$2:$I$73,9,0) -> 0 | M192: =VLOOKUP($J$8,'الارقام القياسية 2016'!$A$2:$I$73,9,0) -> 0 | N192: =VLOOKUP($J$185,'نسب التأثير والسعر والكمية'!$A$4:$T$100,11,0) -> 0 | O192: =VLOOKUP($J$185,'نسب التأثير والسعر والكمية'!$A$4:$C$100,3,0) -> 15 | P192: =VLOOKUP($J$185,'نسب التأثير والسعر والكمية'!$A$4:$C$100,2,0) -> 5486 | Q192: 19 | R192: 212
J194: رقم البند | K194: البند | L194: الرقم القياسي تاريخ الفتح الفني | M194: الرقم القياسي في شهر المستخلص | N194: نسبة التأثير | O194: كمية البند | P194: سعر البند | Q194: عدد الأيام للشهر | R194: الأيام الكلية للمستخلص | S194: الإجمالي
J195: 18 | K195: سولار | L195: =VLOOKUP($C$5,'الارقام القياسية 2016'!$A$2:$I$73,2,0) -> 266.2 | M195: =VLOOKUP($J$8,'الارقام القياسية 2016'!$A$2:$I$73,2,0) -> 319.6 | N195: =VLOOKUP($J$195,'نسب التأثير والسعر والكمية'!$A$4:$T$100,4,0) -> 0.15 | O195: =VLOOKUP($J$195,'نسب التأثير والسعر والكمية'!$A$4:$C$100,3,0) -> 45 | P195: =VLOOKUP($J$195,'نسب التأثير والسعر والكمية'!$A$4:$C$100,2,0) -> 69 | Q195: =$F$7 -> 19 | R195: =$F$4 -> 212 | S195: =IFERROR((L195*M195)/L195*N195*O195*P195*Q195/R195,"") -> 13340.66179
K196: اسمنت بورتلاند | L196: =VLOOKUP($C$5,'الارقام القياسية 2016'!$A$2:$I$73,3,0) -> 131.9 | M196: =VLOOKUP($J$8,'الارقام القياسية 2016'!$A$2:$I$73,3,0) -> 137.6 | N196: =VLOOKUP($J$195,'نسب التأثير والسعر والكمية'!$A$4:$T$100,5,0) -> 0.3 | O196: =VLOOKUP($J$195,'نسب التأثير والسعر والكمية'!$A$4:$C$100,3,0) -> 45 | P196: =VLOOKUP($J$195,'نسب التأثير والسعر والكمية'!$A$4:$C$100,2,0) -> 69 | Q196: =$F$7 -> 19 | R196: =$F$4 -> 212 | S196: 11487.3283
K197: حديد | L197: =VLOOKUP($C$5,'الارقام القياسية 2016'!$A$2:$I$73,4,0) -> 263.7 | M197: =VLOOKUP($J$8,'الارقام القياسية 2016'!$A$2:$I$73,4,0) -> 270.2 | N197: =VLOOKUP($J$195,'نسب التأثير والسعر والكمية'!$A$4:$T$100,6,0) -> 0.1 | O197: =VLOOKUP($J$195,'نسب التأثير والسعر والكمية'!$A$4:$C$100,3,0) -> 45 | P197: =VLOOKUP($J$195,'نسب التأثير والسعر والكمية'!$A$4:$C$100,2,0) -> 69 | Q197: 19 | R197: 212 | S197: 7519.079717
K198: اسفلت | L198: =VLOOKUP($C$5,'الارقام القياسية 2016'!$A$2:$I$73,5,0) -> 311 | M198: =VLOOKUP($J$8,'الارقام القياسية 2016'!$A$2:$I$73,5,0) -> 311 | N198: =VLOOKUP($J$195,'نسب التأثير والسعر والكمية'!$A$4:$T$100,7,0) -> 0 | O198: =VLOOKUP($J$195,'نسب التأثير والسعر والكمية'!$A$4:$C$100,3,0) -> 45 | P198: =VLOOKUP($J$195,'نسب التأثير والسعر والكمية'!$A$4:$C$100,2,0) -> 69 | Q198: 19 | R198: 212 | S198: 0
K199: قطاعات معدنية | L199: =VLOOKUP($C$5,'الارقام القياسية 2016'!$A$2:$I$73,6,0) -> 250.6 | M199: =VLOOKUP($J$8,'الارقام القياسية 2016'!$A$2:$I$73,6,0) -> 233.5 | N199: =VLOOKUP($J$195,'نسب التأثير والسعر والكمية'!$A$4:$T$100,8,0) -> 0 | O199: =VLOOKUP($J$195,'نسب التأثير والسعر والكمية'!$A$4:$C$100,3,0) -> 45 | P199: =VLOOKUP($J$195,'نسب التأثير والسعر والكمية'!$A$4:$C$100,2,0) -> 69 | Q199: 19 | R199: 212 | S199: 0
K200: غلاف معدني | L200: =VLOOKUP($C$5,'الارقام القياسية 2016'!$A$2:$I$73,7,0) -> 278.2 | M200: =VLOOKUP($J$8,'الارقام القياسية 2016'!$A$2:$I$73,7,0) -> 238.5 | N200: =VLOOKUP($J$195,'نسب التأثير والسعر والكمية'!$A$4:$T$100,9,0) -> 0 | O200: =VLOOKUP($J$195,'نسب التأثير والسعر والكمية'!$A$4:$C$100,3,0) -> 45 | P200: =VLOOKUP($J$195,'نسب التأثير والسعر والكمية'!$A$4:$C$100,2,0) -> 69 | Q200: 19 | R200: 212 | S200: 0
K201: زوايا وكمرات | L201: =VLOOKUP($C$5,'الارقام القياسية 2016'!$A$2:$I$73,8,0) -> 271.6 | M201: =VLOOKUP($J$8,'الارقام القياسية 2016'!$A$2:$I$73,8,0) -> 276.9 | N201: =VLOOKUP($J$195,'نسب التأثير والسعر والكمية'!$A$4:$T$100,10,0) -> 0 | O201: =VLOOKUP($J$195,'نسب التأثير والسعر والكمية'!$A$4:$C$100,3,0) -> 45 | P201: =VLOOKUP($J$195,'نسب التأثير والسعر والكمية'!$A$4:$C$100,2,0) -> 69 | Q201: 19 | R201: 212 | S201: 0
K202: مواسير صلب | L202: =VLOOKUP($C$5,'الارقام القياسية 2016'!$A$2:$I$73,9,0) -> 0 | M202: =VLOOKUP($J$8,'الارقام القياسية 2016'!$A$2:$I$73,9,0) -> 0 | N202: =VLOOKUP($J$195,'نسب التأثير والسعر والكمية'!$A$4:$T$100,11,0) -> 0 | O202: =VLOOKUP($J$195,'نسب التأثير والسعر والكمية'!$A$4:$C$100,3,0) -> 45 | P202: =VLOOKUP($J$195,'نسب التأثير والسعر والكمية'!$A$4:$C$100,2,0) -> 69 | Q202: 19 | R202: 212
J204: رقم البند | K204: البند | L204: الرقم القياسي تاريخ الفتح الفني | M204: الرقم القياسي في شهر المستخلص | N204: نسبة التأثير | O204: كمية البند | P204: سعر البند | Q204: عدد الأيام للشهر | R204: الأيام الكلية للمستخلص | S204: الإجمالي
J205: 19 | K205: سولار | L205: =VLOOKUP($C$5,'الارقام القياسية 2016'!$A$2:$I$73,2,0) -> 266.2 | M205: =VLOOKUP($J$8,'الارقام القياسية 2016'!$A$2:$I$73,2,0) -> 319.6 | N205: =VLOOKUP($J$205,'نسب التأثير والسعر والكمية'!$A$4:$T$100,4,0) -> 0.1 | O205: =VLOOKUP($J$205,'نسب التأثير والسعر والكمية'!$A$4:$C$100,3,0) -> 5 | P205: =VLOOKUP($J$205,'نسب التأثير والسعر والكمية'!$A$4:$C$100,2,0) -> 87 | Q205: =$F$7 -> 19 | R205: =$F$4 -> 212 | S205: =IFERROR((L205*M205)/L205*N205*O205*P205*Q205/R205,"") -> 1245.987736
K206: اسمنت بورتلاند | L206: =VLOOKUP($C$5,'الارقام القياسية 2016'!$A$2:$I$73,3,0) -> 131.9 | M206: =VLOOKUP($J$8,'الارقام القياسية 2016'!$A$2:$I$73,3,0) -> 137.6 | N206: =VLOOKUP($J$205,'نسب التأثير والسعر والكمية'!$A$4:$T$100,5,0) -> 0.35 | O206: =VLOOKUP($J$205,'نسب التأثير والسعر والكمية'!$A$4:$C$100,3,0) -> 5 | P206: =VLOOKUP($J$205,'نسب التأثير والسعر والكمية'!$A$4:$C$100,2,0) -> 87 | Q206: =$F$7 -> 19 | R206: =$F$4 -> 212 | S206: 1877.558491
K207: حديد | L207: =VLOOKUP($C$5,'الارقام القياسية 2016'!$A$2:$I$73,4,0) -> 263.7 | M207: =VLOOKUP($J$8,'الارقام القياسية 2016'!$A$2:$I$73,4,0) -> 270.2 | N207: =VLOOKUP($J$205,'نسب التأثير والسعر والكمية'!$A$4:$T$100,6,0) -> 0 | O207: =VLOOKUP($J$205,'نسب التأثير والسعر والكمية'!$A$4:$C$100,3,0) -> 5 | P207: =VLOOKUP($J$205,'نسب التأثير والسعر والكمية'!$A$4:$C$100,2,0) -> 87 | Q207: 19 | R207: 212 | S207: 0
K208: اسفلت | L208: =VLOOKUP($C$5,'الارقام القياسية 2016'!$A$2:$I$73,5,0) -> 311 | M208: =VLOOKUP($J$8,'الارقام القياسية 2016'!$A$2:$I$73,5,0) -> 311 | N208: =VLOOKUP($J$205,'نسب التأثير والسعر والكمية'!$A$4:$T$100,7,0) -> 0 | O208: =VLOOKUP($J$205,'نسب التأثير والسعر والكمية'!$A$4:$C$100,3,0) -> 5 | P208: =VLOOKUP($J$205,'نسب التأثير والسعر والكمية'!$A$4:$C$100,2,0) -> 87 | Q208: 19 | R208: 212 | S208: 0
K209: قطاعات معدنية | L209: =VLOOKUP($C$5,'الارقام القياسية 2016'!$A$2:$I$73,6,0) -> 250.6 | M209: =VLOOKUP($J$8,'الارقام القياسية 2016'!$A$2:$I$73,6,0) -> 233.5 | N209: =VLOOKUP($J$205,'نسب التأثير والسعر والكمية'!$A$4:$T$100,8,0) -> 0 | O209: =VLOOKUP($J$205,'نسب التأثير والسعر والكمية'!$A$4:$C$100,3,0) -> 5 | P209: =VLOOKUP($J$205,'نسب التأثير والسعر والكمية'!$A$4:$C$100,2,0) -> 87 | Q209: 19 | R209: 212 | S209: 0
K210: غلاف معدني | L210: =VLOOKUP($C$5,'الارقام القياسية 2016'!$A$2:$I$73,7,0) -> 278.2 | M210: =VLOOKUP($J$8,'الارقام القياسية 2016'!$A$2:$I$73,7,0) -> 238.5 | N210: =VLOOKUP($J$205,'نسب التأثير والسعر والكمية'!$A$4:$T$100,9,0) -> 0 | O210: =VLOOKUP($J$205,'نسب التأثير والسعر والكمية'!$A$4:$C$100,3,0) -> 5 | P210: =VLOOKUP($J$205,'نسب التأثير والسعر والكمية'!$A$4:$C$100,2,0) -> 87 | Q210: 19 | R210: 212 | S210: 0
K211: زوايا وكمرات | L211: =VLOOKUP($C$5,'الارقام القياسية 2016'!$A$2:$I$73,8,0) -> 271.6 | M211: =VLOOKUP($J$8,'الارقام القياسية 2016'!$A$2:$I$73,8,0) -> 276.9 | N211: =VLOOKUP($J$205,'نسب التأثير والسعر والكمية'!$A$4:$T$100,10,0) -> 0 | O211: =VLOOKUP($J$205,'نسب التأثير والسعر والكمية'!$A$4:$C$100,3,0) -> 5 | P211: =VLOOKUP($J$205,'نسب التأثير والسعر والكمية'!$A$4:$C$100,2,0) -> 87 | Q211: 19 | R211: 212 | S211: 0
K212: مواسير صلب | L212: =VLOOKUP($C$5,'الارقام القياسية 2016'!$A$2:$I$73,9,0) -> 0 | M212: =VLOOKUP($J$8,'الارقام القياسية 2016'!$A$2:$I$73,9,0) -> 0 | N212: =VLOOKUP($J$205,'نسب التأثير والسعر والكمية'!$A$4:$T$100,11,0) -> 0 | O212: =VLOOKUP($J$205,'نسب التأثير والسعر والكمية'!$A$4:$C$100,3,0) -> 5 | P212: =VLOOKUP($J$205,'نسب التأثير والسعر والكمية'!$A$4:$C$100,2,0) -> 87 | Q212: 19 | R212: 212
J214: رقم البند | K214: البند | L214: الرقم القياسي تاريخ الفتح الفني | M214: الرقم القياسي في شهر المستخلص | N214: نسبة التأثير | O214: كمية البند | P214: سعر البند | Q214: عدد الأيام للشهر | R214: الأيام الكلية للمستخلص | S214: الإجمالي
J215: 20 | K215: سولار | L215: =VLOOKUP($C$5,'الارقام القياسية 2016'!$A$2:$I$73,2,0) -> 266.2 | M215: =VLOOKUP($J$8,'الارقام القياسية 2016'!$A$2:$I$73,2,0) -> 319.6 | N215: =VLOOKUP($J$215,'نسب التأثير والسعر والكمية'!$A$4:$T$100,4,0) -> 0 | O215: =VLOOKUP($J$215,'نسب التأثير والسعر والكمية'!$A$4:$C$100,3,0) -> 45 | P215: =VLOOKUP($J$215,'نسب التأثير والسعر والكمية'!$A$4:$C$100,2,0) -> 857 | Q215: =$F$7 -> 19 | R215: =$F$4 -> 212 | S215: =IFERROR((L215*M215)/L215*N215*O215*P215*Q215/R215,"") -> 0
K216: اسمنت بورتلاند | L216: =VLOOKUP($C$5,'الارقام القياسية 2016'!$A$2:$I$73,3,0) -> 131.9 | M216: =VLOOKUP($J$8,'الارقام القياسية 2016'!$A$2:$I$73,3,0) -> 137.6 | N216: =VLOOKUP($J$215,'نسب التأثير والسعر والكمية'!$A$4:$T$100,5,0) -> 0 | O216: =VLOOKUP($J$215,'نسب التأثير والسعر والكمية'!$A$4:$C$100,3,0) -> 45 | P216: =VLOOKUP($J$215,'نسب التأثير والسعر والكمية'!$A$4:$C$100,2,0) -> 857 | Q216: =$F$7 -> 19 | R216: =$F$4 -> 212 | S216: 0
K217: حديد | L217: =VLOOKUP($C$5,'الارقام القياسية 2016'!$A$2:$I$73,4,0) -> 263.7 | M217: =VLOOKUP($J$8,'الارقام القياسية 2016'!$A$2:$I$73,4,0) -> 270.2 | N217: =VLOOKUP($J$215,'نسب التأثير والسعر والكمية'!$A$4:$T$100,6,0) -> 0 | O217: =VLOOKUP($J$215,'نسب التأثير والسعر والكمية'!$A$4:$C$100,3,0) -> 45 | P217: =VLOOKUP($J$215,'نسب التأثير والسعر والكمية'!$A$4:$C$100,2,0) -> 857 | Q217: 19 | R217: 212 | S217: 0
K218: اسفلت | L218: =VLOOKUP($C$5,'الارقام القياسية 2016'!$A$2:$I$73,5,0) -> 311 | M218: =VLOOKUP($J$8,'الارقام القياسية 2016'!$A$2:$I$73,5,0) -> 311 | N218: =VLOOKUP($J$215,'نسب التأثير والسعر والكمية'!$A$4:$T$100,7,0) -> 0 | O218: =VLOOKUP($J$215,'نسب التأثير والسعر والكمية'!$A$4:$C$100,3,0) -> 45 | P218: =VLOOKUP($J$215,'نسب التأثير والسعر والكمية'!$A$4:$C$100,2,0) -> 857 | Q218: 19 | R218: 212 | S218: 0
K219: قطاعات معدنية | L219: =VLOOKUP($C$5,'الارقام القياسية 2016'!$A$2:$I$73,6,0) -> 250.6 | M219: =VLOOKUP($J$8,'الارقام القياسية 2016'!$A$2:$I$73,6,0) -> 233.5 | N219: =VLOOKUP($J$215,'نسب التأثير والسعر والكمية'!$A$4:$T$100,8,0) -> 0 | O219: =VLOOKUP($J$215,'نسب التأثير والسعر والكمية'!$A$4:$C$100,3,0) -> 45 | P219: =VLOOKUP($J$215,'نسب التأثير والسعر والكمية'!$A$4:$C$100,2,0) -> 857 | Q219: 19 | R219: 212 | S219: 0
K220: غلاف معدني | L220: =VLOOKUP($C$5,'الارقام القياسية 2016'!$A$2:$I$73,7,0) -> 278.2 | M220: =VLOOKUP($J$8,'الارقام القياسية 2016'!$A$2:$I$73,7,0) -> 238.5 | N220: =VLOOKUP($J$215,'نسب التأثير والسعر والكمية'!$A$4:$T$100,9,0) -> 0 | O220: =VLOOKUP($J$215,'نسب التأثير والسعر والكمية'!$A$4:$C$100,3,0) -> 45 | P220: =VLOOKUP($J$215,'نسب التأثير والسعر والكمية'!$A$4:$C$100,2,0) -> 857 | Q220: 19 | R220: 212 | S220: 0
K221: زوايا وكمرات | L221: =VLOOKUP($C$5,'الارقام القياسية 2016'!$A$2:$I$73,8,0) -> 271.6 | M221: =VLOOKUP($J$8,'الارقام القياسية 2016'!$A$2:$I$73,8,0) -> 276.9 | N221: =VLOOKUP($J$215,'نسب التأثير والسعر والكمية'!$A$4:$T$100,10,0) -> 0 | O221: =VLOOKUP($J$215,'نسب التأثير والسعر والكمية'!$A$4:$C$100,3,0) -> 45 | P221: =VLOOKUP($J$215,'نسب التأثير والسعر والكمية'!$A$4:$C$100,2,0) -> 857 | Q221: 19 | R221: 212 | S221: 0
K222: مواسير صلب | L222: =VLOOKUP($C$5,'الارقام القياسية 2016'!$A$2:$I$73,9,0) -> 0 | M222: =VLOOKUP($J$8,'الارقام القياسية 2016'!$A$2:$I$73,9,0) -> 0 | N222: =VLOOKUP($J$215,'نسب التأثير والسعر والكمية'!$A$4:$T$100,11,0) -> 0 | O222: =VLOOKUP($J$215,'نسب التأثير والسعر والكمية'!$A$4:$C$100,3,0) -> 45 | P222: =VLOOKUP($J$215,'نسب التأثير والسعر والكمية'!$A$4:$C$100,2,0) -> 857 | Q222: 19 | R222: 212
J224: رقم البند | K224: البند | L224: الرقم القياسي تاريخ الفتح الفني | M224: الرقم القياسي في شهر المستخلص | N224: نسبة التأثير | O224: كمية البند | P224: سعر البند | Q224: عدد الأيام للشهر | R224: الأيام الكلية للمستخلص | S224: الإجمالي
... 152 more rows

Sheet الارقام القياسية 2016
A1: البند / الشهر | B1: سولار | C1: اسمنت بورتلاند | D1: حديد | E1: اسفلت | F1: قطاعات معدنية | G1: غلاف معدني | H1: زوايا وكمرات | I1: مواسير صلب ملحومة
A2: 2016-01-01
A3: 2016-02-01
A4: 2016-03-01
A5: 2016-04-01
A6: 2016-05-01
A7: 2016-06-01
A8: 2016-07-01
A9: 2016-08-01
A10: 2016-09-01
A11: 2016-10-01
A12: 2016-11-01
A13: 2016-12-01
A14: 2017-01-01
A15: 2017-02-01
A16: 2017-03-01
A17: 2017-04-01
A18: 2017-05-01
A19: 2017-06-01
A20: 2017-07-01
A21: 2017-08-01 | B21: 187.1 | C21: 123.2 | D21: 259.1 | E21: 231.5 | F21: 238.9 | G21: 260.5 | H21: 238.2
A22: 2017-09-01 | B22: 187.1 | C22: 125 | D22: 267.6 | E22: 231.5 | F22: 239 | G22: 263 | H22: 240.7
A23: 2017-10-01 | B23: 187.1 | C23: 117.5 | D23: 272.1 | E23: 284.9 | F23: 245.9 | G23: 267.3 | H23: 254.1
A24: 2017-11-01 | B24: 187.1 | C24: 138.5 | D24: 272.1 | E24: 284.9 | F24: 245.9 | G24: 267.3 | H24: 254.1
A25: 2017-12-01 | B25: 187.1 | C25: 144.1 | D25: 272.1 | E25: 284.9 | F25: 245.9 | G25: 267.3 | H25: 252.9
A26: 2018-01-01 | B26: 187.1 | C26: 144.1 | D26: 272.1 | E26: 284.9 | F26: 248.9 | G26: 267.3 | H26: 252.9
A27: 2018-02-01 | B27: 187.1 | C27: 144.1 | D27: 272.1 | E27: 284.9 | F27: 248.9 | G27: 267.3 | H27: 252.9
A28: 2018-03-01 | B28: 187.1 | C28: 175.4 | D28: 290.7 | E28: 284.9 | F28: 255.6 | G28: 275.1 | H28: 260.7
A29: 2018-04-01 | B29: 187.1 | C29: 144.6 | D29: 284.7 | E29: 311 | F29: 261.3 | G29: 284 | H29: 271.4
A30: 2018-05-01 | B30: 187.1 | C30: 137.9 | D30: 284.7 | E30: 311 | F30: 261.3 | G30: 284 | H30: 271.4
A31: 2018-06-01 | B31: 266.2 | C31: 142.5 | D31: 284.7 | E31: 311 | F31: 261.3 | G31: 284 | H31: 271.4
A32: 2018-07-01 | B32: 266.2 | C32: 143 | D32: 284.7 | E32: 311 | F32: 261.3 | G32: 284 | H32: 271.4
A33: 2018-08-01 | B33: 266.2 | C33: 132.1 | D33: 284.7 | E33: 311 | F33: 261.3 | G33: 284 | H33: 271.4
A34: 2018-09-01 | B34: 266.2 | C34: 132.1 | D34: 284.7 | E34: 311 | F34: 261.3 | G34: 284 | H34: 271.4
A35: 2018-10-01 | B35: 266.2 | C35: 134.7 | D35: 277.2 | E35: 311 | F35: 261.3 | G35: 284 | H35: 271.4
A36: 2018-11-01 | B36: 266.2 | C36: 134.7 | D36: 277.2 | E36: 311 | F36: 261.3 | G36: 284 | H36: 271.4
A37: 2018-12-01 | B37: 266.2 | C37: 131.9 | D37: 263.7 | E37: 311 | F37: 256.6 | G37: 284 | H37: 271.4
A38: 2019-01-01 | B38: 266.2 | C38: 131.9 | D38: 263.7 | E38: 311 | F38: 250.6 | G38: 278.2 | H38: 271.6
A39: 2019-02-01 | B39: 266.2 | C39: 131.9 | D39: 263.7 | E39: 311 | F39: 249.2 | G39: 274.5 | H39: 271.6
A40: 2019-03-01 | B40: 266.2 | C40: 131.9 | D40: 263.7 | E40: 311 | F40: 249.2 | G40: 274.5 | H40: 271.6
A41: 2019-04-01 | B41: 266.2 | C41: 131.9 | D41: 263.7 | E41: 311 | F41: 249.2 | G41: 274.5 | H41: 271.6
A42: 2019-05-01 | B42: 266.2 | C42: 131.9 | D42: 267.7 | E42: 311 | F42: 249.2 | G42: 272.3 | H42: 271.6
A43: 2019-06-01 | B43: 266.2 | C43: 131.9 | D43: 270.2 | E43: 311 | F43: 249.2 | G43: 272.3 | H43: 271.6
A44: 2019-07-01 | B44: 319.6 | C44: 137.8 | D44: 270.2 | E44: 311 | F44: 246.6 | G44: 263 | H44: 271.6
A45: 2019-08-01 | B45: 319.6 | C45: 137.6 | D45: 270.2 | E45: 311 | F45: 243.1 | G45: 246.3 | H45: 271.6
A46: 2019-09-01 | B46: 319.6 | C46: 137.6 | D46: 270.2 | E46: 311 | F46: 233.5 | G46: 238.5 | H46: 276.9
A47: 2019-10-01 | B47: 315.5 | C47: 137.6 | D47: 247.7 | E47: 311 | F47: 230.6 | G47: 234.4 | H47: 276.9
A48: 2019-11-01 | B48: 315.5 | C48: 137.6 | D48: 235.7 | E48: 311 | F48: 228.4 | G48: 226.1 | H48: 263.2
A49: 2019-12-01 | B49: 315.5 | C49: 137.6 | D49: 240.2 | E49: 311 | F49: 226.7 | G49: 224.6 | H49: 276.9
A50: 2020-01-01 | B50: 315.5 | C50: 137.9 | D50: 240.2 | E50: 289.8 | F50: 225.8 | G50: 263.2 | H50: 260.8
A51: 2020-02-01 | B51: 315.5 | C51: 137.9 | D51: 229.5 | E51: 289.8 | F51: 225.8 | G51: 220.9 | H51: 260.8 | I51: 260.8
A52: 2020-03-01 | B52: 315.5 | C52: 137.9 | D52: 232.1 | E52: 289.8 | F52: 225.8 | G52: 220.9 | H52: 260.8 | I52: 260.8
A53: 2020-04-01 | B53: 311.3 | C53: 137.9 | D53: 232.1 | E53: 274 | F53: 225.8 | G53: 220.9 | H53: 260.8 | I53: 260.8
A54: 2020-05-01 | B54: 311.3 | C54: 137.9 | D54: 232.1 | E54: 274 | F54: 225.8 | G54: 220.9 | H54: 260.8 | I54: 260.8
A55: 2020-06-01 | B55: 311.3 | C55: 137.9 | D55: 232.1 | E55: 274 | F55: 214.5 | G55: 214.5 | H55: 260.8 | I55: 260.8
A56: 2020-07-01 | B56: 311.3 | C56: 148.2 | D56: 232.1 | E56: 274 | F56: 207.4 | G56: 211.3 | H56: 260.8 | I56: 260.8
A57: 2020-08-01 | B57: 311.3 | C57: 148.2 | D57: 221.6 | E57: 274 | F57: 205.9 | G57: 208 | H57: 260.8 | I57: 260.8
A58: 2020-09-01 | B58: 311.3 | C58: 148.2 | D58: 221.6 | E58: 274 | F58: 205.6 | G58: 208 | H58: 260.8 | I58: 260.8
A59: 2020-10-01 | B59: 311.3 | C59: 148.2 | D59: 229.6 | E59: 274 | F59: 204 | G59: 208 | H59: 260.8 | I59: 260.8
A60: 2020-11-01 | B60: 311.3 | C60: 148.2 | D60: 229.6 | E60: 274 | F60: 204 | G60: 208 | H60: 260.8 | I60: 260.8
A61: 2020-12-01 | B61: 311.3 | C61: 148.2 | D61: 287.6 | E61: 274 | F61: 224.5 | G61: 201.3 | H61: 260.8 | I61: 260.8
A62: 2021-01-01 | B62: 311.3 | C62: 148.2 | D62: 310.3 | E62: 274 | F62: 234.2 | G62: 298.6 | H62: 301.5 | I62: 260.8
A63: 2021-02-01 | B63: 311.3 | C63: 148.4 | D63: 310.3 | E63: 303.1 | F63: 245.5 | G63: 298.6 | H63: 301.5 | I63: 260.8
A64: 2021-03-01 | B64: 311.3 | C64: 150.6 | D64: 310.3 | E64: 303.1 | F64: 243.9 | G64: 290 | H64: 291 | I64: 260.8
A65: 2021-04-01 | B65: 315.4 | C65: 152.7 | D65: 310.3 | E65: 358.4 | F65: 251.7 | G65: 338.5 | H65: 318 | I65: 274.9
A66: 2021-05-01 | B66: 315.4 | C66: 152.7 | D66: 313.7 | E66: 358.4 | F66: 251.7 | G66: 420.3 | H66: 419.5 | I66: 274.9
A67: 2021-06-01
A68: 2021-07-01
A69: 2021-08-01
A70: 2021-09-01
A71: 2021-10-01
A72: 2021-11-01
A73: 2021-12-01

Sheet نسب التأثير والسعر والكمية
A3: رقم البند | B3: سعر البند | C3: كمية البند | D3: سولار | E3: اسمنت بورتلاند | F3: حديد | G3: اسفلت | H3: قطاعات معدنية | I3: غلاف معدني | J3: زوايا وكمرات | K3: مواسير صلب
A4: 1 | B4: 5 | C4: 120 | D4: 0.1
A5: 2 | B5: 12 | C5: 15 | D5: 0.2
A6: 3 | B6: 7 | C6: 156 | D6: 0.3
A7: 4 | B7: 3 | C7: 125 | D7: 0.4
A8: 5 | B8: 45 | C8: 15 | D8: 0.5
A9: 6 | B9: 645 | C9: 51 | D9: 0.6
A10: 7 | B10: 884 | C10: 4545 | D10: 0.7 | G10: 0.75
A11: 8 | B11: 54 | C11: 1545 | D11: 0.15 | G11: 0.5
A12: 9 | B12: 254 | C12: 45 | D12: 0.15 | G12: 0.65
A13: 10 | B13: 748 | C13: 45 | D13: 0.15 | G13: 0.5
A14: 11 | B14: 545 | C14: 24 | D14: 0.15 | G14: 0.5
A15: 12 | B15: 8987 | C15: 5 | D15: 0.15 | E15: 0.35
A16: 13 | B16: 5454 | C16: 545 | D16: 0.15
A17: 14 | B17: 878 | C17: 2 | D17: 0.1 | E17: 0.25
A18: 15 | B18: 54 | C18: 45 | D18: 0.1 | E18: 0.25
A19: 16 | B19: 8 | C19: 45 | D19: 0.1 | E19: 0.2 | F19: 0.35
A20: 17 | B20: 5486 | C20: 15 | D20: 0.15 | E20: 0.3 | F20: 0.1
A21: 18 | B21: 69 | C21: 45 | D21: 0.15 | E21: 0.3 | F21: 0.1
A22: 19 | B22: 87 | C22: 5 | D22: 0.1 | E22: 0.35
A23: 20 | B23: 857 | C23: 45
A24: 21 | B24: 58 | C24: 12
A25: 22 | B25: 5 | C25: 11
A26: 23 | B26: 8 | C26: 7
A27: 24 | B27: 74 | C27: 12
A28: 25 | B28: 5 | C28: 22
A29: 26 | B29: 8 | C29: 45
A30: 27 | B30: 254 | C30: 48 | D30: 0.15 | G30: 0.65
A31: 28 | B31: 748 | C31: 45 | D31: 0.15 | G31: 0.5
A32: 29 | B32: 545 | C32: 24 | D32: 0.15 | G32: 0.5
A33: 30 | B33: 8987 | C33: 5 | D33: 0.15 | E33: 0.35
A34: 31 | B34: 5454 | C34: 545 | D34: 0.15
A35: 32 | B35: 878 | C35: 2 | D35: 0.1 | E35: 0.25
A36: 33 | B36: 54 | C36: 45 | D36: 0.1 | E36: 0.25
A37: 34 | B37: 8 | C37: 48 | D37: 0.1 | E37: 0.2 | F37: 0.35
A38: 35 | B38: 5486 | C38: 15 | D38: 0.15 | E38: 0.3 | F38: 0.1
A39: 36 | B39: 69 | C39: 45 | D39: 0.15 | E39: 0.3 | F39: 0.1
A40: 37 | B40: 87 | C40: 5 | D40: 0.1 | E40: 0.35 | F40: 0.1
